Body Name,Body,Service Division Label,Service Division Code,Organisational Unit,Expenditure Category,Expenditure Code,CIPFA detailed expediture type,CIPFA detailed expediture code,Narrative,Date,Transaction number,Net Amount,Capital and Revenue,Supplier Name,Supplier ID,,
Chorley Borough Council,http://statistics.data.gov.uk/id/local-authority/30UE,Culture & Heritage,1036,GOVN - Policy & Governance,Arts Development Initiatives,40187,Miscellaneous Expenses,5034,Illustrations for 9 Ladies Dancing Installation at Astley Hall,20/12/2023,0189581,500,Revenue,ADAM PRYCE,89703,,
Chorley Borough Council,http://statistics.data.gov.uk/id/local-authority/30UE,Tourism,1039,GOVN - Policy & Governance,Misc Expenses,40200,Miscellaneous Expenses,5034,"Christmas presents for Chorley Grotto:, , Reel of 100 `I`ve seen Santa` Santa stickers, Part No. WGT STK1, 3.05, QTY 50, , Box o",20/12/2023,0189697,1267.5,Revenue,Andersons Wholesale,78268,,
Chorley Borough Council,http://statistics.data.gov.uk/id/local-authority/30UE,Culture & Heritage,1036,GOVN - Policy & Governance,Exhibitions & Special Events,40158,Miscellaneous Expenses,5034,Father Christmas performer NAME REDACTED at Astley Hall`s Grotto,20/12/2023,0188101,1320,Revenue,Andrea Price Management,76897,,
Chorley Borough Council,http://statistics.data.gov.uk/id/local-authority/30UE,Homelessness,1075,EARL - Communities,Grants - Tenant Participation,40142,Grants and Subscriptions,5031,0,20/12/2023,0189465,1036,Revenue,Ann Strange,87237,,
Chorley Borough Council,http://statistics.data.gov.uk/id/local-authority/30UE,Homelessness,1075,EARL - Communities,Grants - Tenant Participation,40142,Grants and Subscriptions,5031,0,20/12/2023,0189449,625,Revenue,Anne Barnish,85651,,
Chorley Borough Council,http://statistics.data.gov.uk/id/local-authority/30UE,Other Short Term Creditors,0,GOVN - Policy & Governance,Amount Paid,00010,Balance Sheet,Balance,AVC Wise Scheme - annual purchase order (monthly spend approximately 8872,13/12/2023,0188344,515.33,Revenue,AVCWise,89242,,
Chorley Borough Council,http://statistics.data.gov.uk/id/local-authority/30UE,Other Short Term Creditors,0,GOVN - Policy & Governance,Amount Paid,00010,Balance Sheet,Balance,AVC Wise Scheme - annual purchase order (monthly spend approximately 8872,13/12/2023,0188675,549.92,Revenue,AVCWise,89242,,
Chorley Borough Council,http://statistics.data.gov.uk/id/local-authority/30UE,Capital,Capital,GROW - Commercial Services,Main Contractor,03007,Capital Expenditure,Capital,Demolition works at Chorley Lodge.,13/12/2023,0188887,10000,Capital,AW Demolition,89643,,
Chorley Borough Council,http://statistics.data.gov.uk/id/local-authority/30UE,Central Support Services,1009,CUST - Customer & Digital,Newsletter Production,40166,Miscellaneous Expenses,5034,Chorley Council 2024 Waste collection Calendar. 25 sorts. Total Quantity: 57800 as per estimate No.177901A,06/12/2023,0188029,4330,Revenue,B & D Print Services Ltd,76976,,
Chorley Borough Council,http://statistics.data.gov.uk/id/local-authority/30UE,Service Management & Support,1009,CUST - Customer & Digital,Hire Of Vehicles and Plant,30028,Contrct Hire & Operating Lease,5018,"As per submission to ITT invitation to Tender for the , contract hire with service and maintenance of , Grounds Maintenance Machi",20/12/2023,0189333,1242.4,Revenue,Balmers Garden Machinery,17075,,
Chorley Borough Council,http://statistics.data.gov.uk/id/local-authority/30UE,Control Accounts,Control,GOVN - Policy & Governance,General Balances,00100,Balance Sheet,Balance,,22/12/2023,0189678,13339.6,Revenue,Barclaycard Commercial,59848,,
Chorley Borough Council,http://statistics.data.gov.uk/id/local-authority/30UE,Corporate Management,1008,GOVN - Policy & Governance,Bank Charges,40151,Miscellaneous Expenses,5034,Merchant number : 1648537 - including 1 outlet,22/12/2023,0188403,2701.98,Revenue,Barclaycard Merchant Services,61601,,
Chorley Borough Council,http://statistics.data.gov.uk/id/local-authority/30UE,Corporate Management,1008,GOVN - Policy & Governance,Bank Charges,40151,Miscellaneous Expenses,5034,Merchant number : 1648535 - including 1 outlet,22/12/2023,0188409,1435.65,Revenue,Barclaycard Merchant Services,61601,,
Chorley Borough Council,http://statistics.data.gov.uk/id/local-authority/30UE,Corporate Management,1008,GOVN - Policy & Governance,Bank Charges,40151,Miscellaneous Expenses,5034,,22/12/2023,0189700,3721.17,Revenue,Barclaycard Merchant Services,61601,,
Chorley Borough Council,http://statistics.data.gov.uk/id/local-authority/30UE,Corporate Management,1008,GOVN - Policy & Governance,Bank Charges,40151,Miscellaneous Expenses,5034,,22/12/2023,0189706,1851.2,Revenue,Barclaycard Merchant Services,61601,,
Chorley Borough Council,http://statistics.data.gov.uk/id/local-authority/30UE,Homelessness,1075,EARL - Communities,Grants To Other Organisations,40127,Grants and Subscriptions,5031,"Grant funding for the projects to be delivered as outlined in the grant agreement, Bespoke ESOL programme - 20 weeks in total and",06/12/2023,0188556,84000,Revenue,Beam Up LTD,89640,,
Chorley Borough Council,http://statistics.data.gov.uk/id/local-authority/30UE,Homelessness,1075,EARL - Communities,Grants - Tenant Participation,40142,Grants and Subscriptions,5031,0,20/12/2023,0189447,625,Revenue,Beverley Elliott,86921,,
Chorley Borough Council,http://statistics.data.gov.uk/id/local-authority/30UE,Central Support Services,1009,GOVN - Policy & Governance,External Contractor,40198,Miscellaneous Expenses,5034,iTrent System Charge for Chorley,13/12/2023,0188739,15000,Revenue,Blackpool Borough Council,16518,,
Chorley Borough Council,http://statistics.data.gov.uk/id/local-authority/30UE,Capital,Capital,GROW - Commercial Services,Main Contractor,03007,Capital Expenditure,Capital,"Asbestos Demolition Survey at Chorley Lodge., , Works order as per NAME REDACTED",20/12/2023,0188231,695,Capital,Bradley Environmental Consultants Ltd,77154,,
Chorley Borough Council,http://statistics.data.gov.uk/id/local-authority/30UE,Central Support Services,1009,GROW - Commercial Services,General Repairs - Reactive,20004,Repairs Maintenance & Alts,5005,Astley Hall & Buildings Reactive General Building Repair Works,06/12/2023,0188348,1515.8,Revenue,Bryan Lee Building Contractors Ltd,78160,,
Chorley Borough Council,http://statistics.data.gov.uk/id/local-authority/30UE,Capital,Capital,GROW - Commercial Services,Other Capital Related Fees,03024,Capital Expenditure,Capital,Damp Proofing for property : ADDRESS REDACTED,06/12/2023,0188674,8849.3,Capital,Bryan Lee Building Contractors Ltd,78160,,
Chorley Borough Council,http://statistics.data.gov.uk/id/local-authority/30UE,Central Support Services,1009,GROW - Commercial Services,General Repairs - Reactive,20004,Repairs Maintenance & Alts,5005,Cotswold House Reactive General Building Repair Works,13/12/2023,0188705,646.01,Revenue,Bryan Lee Building Contractors Ltd,78160,,
Chorley Borough Council,http://statistics.data.gov.uk/id/local-authority/30UE,Central Support Services,1009,GROW - Commercial Services,General Repairs - Reactive,20004,Repairs Maintenance & Alts,5005,CBC Housing Reactive General Building Repair Works,13/12/2023,0188718,2200.8,Revenue,Bryan Lee Building Contractors Ltd,78160,,
Chorley Borough Council,http://statistics.data.gov.uk/id/local-authority/30UE,Central Support Services,1009,GROW - Commercial Services,General Repairs - Reactive,20004,Repairs Maintenance & Alts,5005,CBC Housing Reactive General Building Repair Works,20/12/2023,0189506,580.99,Revenue,Bryan Lee Building Contractors Ltd,78160,,
Chorley Borough Council,http://statistics.data.gov.uk/id/local-authority/30UE,Central Support Services,1009,CUST - Customer & Digital,ICT Software Implementation,40114,Communication and Computing,5028,DWP LADS program - 01.04.2022-30.09.2023,06/12/2023,0189213,2573.06,Revenue,Capita Business Services Ltd,17151,,
Chorley Borough Council,http://statistics.data.gov.uk/id/local-authority/30UE,Business Support,1095,GROW - Commercial Services,Salting & Gritting,20059,Grounds Maintenance Costs,5013,"Seasonal�Winter�Gritting�service�for�Market�Walk�Shopping�Centre,�service�yards,�public�walkways�and�car�park�as�agreed. , Quote�",13/12/2023,0189341,928.6,Revenue,Chameleon Facilities Limited,78464,,
Chorley Borough Council,http://statistics.data.gov.uk/id/local-authority/30UE,Business Support,1095,GROW - Commercial Services,Salting & Gritting,20059,Grounds Maintenance Costs,5013,"Seasonal Winter Gritting Service for Primrose Gardens, Public Walkways & Car Park, Quote per Visit 116.69, Total 4667.60 ( PO b",13/12/2023,0189343,583.45,Revenue,Chameleon Facilities Limited,78464,,
Chorley Borough Council,http://statistics.data.gov.uk/id/local-authority/30UE,Business Support,1095,GROW - Commercial Services,Salting & Gritting,20059,Grounds Maintenance Costs,5013,"Seasonal Winter Gritting service for Strawberry Fields Digital Office Park, public walkways and car parks as agreed , Quote per v",13/12/2023,0189345,715.05,Revenue,Chameleon Facilities Limited,78464,,
Chorley Borough Council,http://statistics.data.gov.uk/id/local-authority/30UE,Regulatory Services,1048,PLAN - Planning & Development,Taxi Testing & Vehicle Safety Report,40234,Services,5027,,06/12/2023,0189219,1077.8,Revenue,Chorley Autocare Ltd,17110,,
Chorley Borough Council,http://statistics.data.gov.uk/id/local-authority/30UE,Homelessness,1075,EARL - Communities,Misc Expenses,40200,Miscellaneous Expenses,5034,Cash on Arrival,22/12/2023,0189574,1500,Revenue,Chorley BC Petty Cash,16301,,
Chorley Borough Council,http://statistics.data.gov.uk/id/local-authority/30UE,Central Support Services,1009,EARL - Communities,Rent/Hire Of Premises,20017,Premises Rents,5007,"Operation Sunshine - Hire of West Way Sport Hub, 6,13,20 August 240 per session",13/12/2023,0187674,720,Revenue,Chorley Leisure Ltd,83376,,
Chorley Borough Council,http://statistics.data.gov.uk/id/local-authority/30UE,Other Short Term Creditors,0,GOVN - Policy & Governance,General Balances,00100,Balance Sheet,Balance,income transfer,13/12/2023,0189254,1747.26,Revenue,Chorley Leisure Ltd,83376,,
Chorley Borough Council,http://statistics.data.gov.uk/id/local-authority/30UE,Central Support Services,1009,EARL - Communities,Children's Activities,40188,Miscellaneous Expenses,5034,Delivery of Chorley HAF programme Christmas 2023 as per grant agreement,20/12/2023,0189596,3894,Revenue,Chorley School Sport Partnership,56115,,
Chorley Borough Council,http://statistics.data.gov.uk/id/local-authority/30UE,Corporate Management,1008,EARL - Communities,Other Contributions,40145,Grants and Subscriptions,5031,Household Support Fund Delivery  2nd payment as per agreement,13/12/2023,0189398,2125,Revenue,Chorley United Reformed Church,77003,,
Chorley Borough Council,http://statistics.data.gov.uk/id/local-authority/30UE,Central Support Services,1009,EARL - Communities,Children's Activities,40188,Miscellaneous Expenses,5034,Delivery of Chorley HAF programme Christmas 2023 as per grant agreement,06/12/2023,0188654,12800,Revenue,Chorley Youth Zone,77339,,
Chorley Borough Council,http://statistics.data.gov.uk/id/local-authority/30UE,Corporate Management,1008,EARL - Communities,Other Contributions,40145,Grants and Subscriptions,5031,CAB for an additional 20k for HSF 4,20/12/2023,0189579,20000,Revenue,Citizens Advice Lancashire,17035,,
Chorley Borough Council,http://statistics.data.gov.uk/id/local-authority/30UE,Business Support,1095,GROW - Commercial Services,Christmas Lights,40179,Miscellaneous Expenses,5034,"Chorley TMarket Walk Christmas Display 2023/24 , , Calico East area , Storage, installation and dismantle of area scheme 5450, ,",13/12/2023,0188609,4382.5,Revenue,City Illuminations Ltd,77388,,
Chorley Borough Council,http://statistics.data.gov.uk/id/local-authority/30UE,Central Support Services,1009,EARL - Communities,Misc Expenses,40200,Miscellaneous Expenses,5034,warm spaces,13/12/2023,0189261,500,Revenue,Clayton Brook Community Church,65994,,
Chorley Borough Council,http://statistics.data.gov.uk/id/local-authority/30UE,Capital,Capital,GOVN - Policy & Governance,Other Legal Fees,03020,Capital Expenditure,Capital,Legal Fees to reimburse costs incurred by Primrose Holdings 1995 Limited in connection with Primrose joining in an easement to gr,20/12/2023,0189356,2000,Capital,Clients C/O Harrison Drury Solicitors,85124,,
Chorley Borough Council,http://statistics.data.gov.uk/id/local-authority/30UE,Tourism,1039,GOVN - Policy & Governance,External Contractor,40198,Miscellaneous Expenses,5034,Winter Wonderland: Provision of 2 x security guards between Thursday 30th November - Sunday 17th December as agreed on the securi,20/12/2023,0189561,5692.5,Revenue,Close Protection International Ltd,90027,,
Chorley Borough Council,http://statistics.data.gov.uk/id/local-authority/30UE,Tourism,1039,GOVN - Policy & Governance,External Contractor,40198,Miscellaneous Expenses,5034,Winter Wonderland: Provision of 2 x security guards between Monday 18th and Sunday 31st December as per the security schedule pro,20/12/2023,0189714,4347.75,Revenue,Close Protection International Ltd,90027,,
Chorley Borough Council,http://statistics.data.gov.uk/id/local-authority/30UE,Service Management & Support,1009,CUST - Customer & Digital,Supplies-Grounds Maintenance,40025,"Equipment, Furniture & Materia",5023,"Rock Salt as per quotation from NAME REDACTED, 46.94 per tonne, 28 tonne load delivered to Bengal Street Depot Chorley",20/12/2023,0189283,1343.42,Revenue,Compass Minerals UK Ltd,18087,,
Chorley Borough Council,http://statistics.data.gov.uk/id/local-authority/30UE,Recreation & Sport,1037,GROW - Commercial Services,Gas,20014,Energy Costs,5006,,06/12/2023,0188834,11370.79,Revenue,Corona Energy Retail 2 Ltd,67249,,
Chorley Borough Council,http://statistics.data.gov.uk/id/local-authority/30UE,Central Support Services,1009,GROW - Commercial Services,Gas,20014,Energy Costs,5006,,06/12/2023,0188838,732.37,Revenue,Corona Energy Retail 2 Ltd,67249,,
Chorley Borough Council,http://statistics.data.gov.uk/id/local-authority/30UE,Homelessness,1075,GROW - Commercial Services,Gas,20014,Energy Costs,5006,,06/12/2023,0188840,5186.56,Revenue,Corona Energy Retail 2 Ltd,67249,,
Chorley Borough Council,http://statistics.data.gov.uk/id/local-authority/30UE,Recreation & Sport,1037,GROW - Commercial Services,Gas,20014,Energy Costs,5006,,06/12/2023,0188842,874.35,Revenue,Corona Energy Retail 2 Ltd,67249,,
Chorley Borough Council,http://statistics.data.gov.uk/id/local-authority/30UE,Recreation & Sport,1037,GROW - Commercial Services,Gas,20014,Energy Costs,5006,,06/12/2023,0188844,40480,Revenue,Corona Energy Retail 2 Ltd,67249,,
Chorley Borough Council,http://statistics.data.gov.uk/id/local-authority/30UE,Recreation & Sport,1037,GROW - Commercial Services,Gas,20014,Energy Costs,5006,,06/12/2023,0188846,1297.06,Revenue,Corona Energy Retail 2 Ltd,67249,,
Chorley Borough Council,http://statistics.data.gov.uk/id/local-authority/30UE,Recreation & Sport,1037,GROW - Commercial Services,Gas,20014,Energy Costs,5006,,06/12/2023,0188847,4260.52,Revenue,Corona Energy Retail 2 Ltd,67249,,
Chorley Borough Council,http://statistics.data.gov.uk/id/local-authority/30UE,Recreation & Sport,1037,GROW - Commercial Services,Gas,20014,Energy Costs,5006,,06/12/2023,0188849,781.15,Revenue,Corona Energy Retail 2 Ltd,67249,,
Chorley Borough Council,http://statistics.data.gov.uk/id/local-authority/30UE,Central Support Services,1009,GROW - Commercial Services,Gas,20014,Energy Costs,5006,,06/12/2023,0188850,3889.55,Revenue,Corona Energy Retail 2 Ltd,67249,,
Chorley Borough Council,http://statistics.data.gov.uk/id/local-authority/30UE,Business Support,1095,GROW - Commercial Services,Gas,20014,Energy Costs,5006,,06/12/2023,0188851,8520.2,Revenue,Corona Energy Retail 2 Ltd,67249,,
Chorley Borough Council,http://statistics.data.gov.uk/id/local-authority/30UE,Open Spaces,1038,GROW - Commercial Services,Gas,20014,Energy Costs,5006,,06/12/2023,0188852,3583.64,Revenue,Corona Energy Retail 2 Ltd,67249,,
Chorley Borough Council,http://statistics.data.gov.uk/id/local-authority/30UE,Recreation & Sport,1037,GROW - Commercial Services,Gas,20014,Energy Costs,5006,,06/12/2023,0188853,5244.82,Revenue,Corona Energy Retail 2 Ltd,67249,,
Chorley Borough Council,http://statistics.data.gov.uk/id/local-authority/30UE,Culture & Heritage,1036,GROW - Commercial Services,Gas,20014,Energy Costs,5006,,13/12/2023,0189263,515.02,Revenue,Corona Energy Retail 2 Ltd,67249,,
Chorley Borough Council,http://statistics.data.gov.uk/id/local-authority/30UE,Central Support Services,1009,GROW - Commercial Services,Gas,20014,Energy Costs,5006,,13/12/2023,0189264,5000.38,Revenue,Corona Energy Retail 2 Ltd,67249,,
Chorley Borough Council,http://statistics.data.gov.uk/id/local-authority/30UE,Recreation & Sport,1037,GROW - Commercial Services,Gas,20014,Energy Costs,5006,Oct 23 - Nov 23,13/12/2023,0189418,40480,Revenue,Corona Energy Retail 2 Ltd,67249,,
Chorley Borough Council,http://statistics.data.gov.uk/id/local-authority/30UE,Recreation & Sport,1037,GROW - Commercial Services,Gas,20014,Energy Costs,5006,oct 23 - nov 23,13/12/2023,0189419,11370.79,Revenue,Corona Energy Retail 2 Ltd,67249,,
Chorley Borough Council,http://statistics.data.gov.uk/id/local-authority/30UE,Capital,Capital,GROW - Commercial Services,Grants,03002,Capital Expenditure,Capital,,13/12/2023,0188837,5511,Capital,D J Bathing,78482,,
Chorley Borough Council,http://statistics.data.gov.uk/id/local-authority/30UE,Capital,Capital,EARL - Communities,Grants,03002,Capital Expenditure,Capital,23/00077/CAG,20/12/2023,0189420,4106,Capital,D J Bathing,78482,,
Chorley Borough Council,http://statistics.data.gov.uk/id/local-authority/30UE,Capital,Capital,EARL - Communities,Grants,03002,Capital Expenditure,Capital,ADDRESS REDACTED,20/12/2023,0189476,5133,Capital,D J Bathing,78482,,
Chorley Borough Council,http://statistics.data.gov.uk/id/local-authority/30UE,Homelessness,1075,EARL - Communities,Grants - Tenant Participation,40142,Grants and Subscriptions,5031,0,20/12/2023,0189445,625,Revenue,Daniel McKeown-Henshall,85588,,
Chorley Borough Council,http://statistics.data.gov.uk/id/local-authority/30UE,Corporate Management,1008,GOVN - Policy & Governance,Energy/Fuel Payments,40290,Miscellaneous Expenses,5034,,13/12/2023,0189295,47200,Revenue,Department for Energy Security & Net Zero,90017,,
Chorley Borough Council,http://statistics.data.gov.uk/id/local-authority/30UE,Corporate Management,1008,GOVN - Policy & Governance,Energy/Fuel Payments,40290,Miscellaneous Expenses,5034,,13/12/2023,0189296,318400,Revenue,Department for Energy Security & Net Zero,90017,,
Chorley Borough Council,http://statistics.data.gov.uk/id/local-authority/30UE,Central Support Services,1009,GOVN - Policy & Governance,Furniture - Purchase,40012,"Equipment, Furniture & Materia",5023,"3 x Office Chairs, OC97FDA C1+, Colour: Black, Quantity: 3 (Three)",06/12/2023,0188536,847.43,Revenue,Diamond Business Interiors Ltd,53722,,
Chorley Borough Council,http://statistics.data.gov.uk/id/local-authority/30UE,Capital,Capital,GROW - Commercial Services,Consultants Fees,03025,Capital Expenditure,Capital,"All Seasons Leisure Centre - PPM Survey, Including Swimming Pool Survey",20/12/2023,0189224,3900,Capital,ECS Consultants Limited,89676,,
Chorley Borough Council,http://statistics.data.gov.uk/id/local-authority/30UE,Central Support Services,1009,CUST - Customer & Digital,Mobile Voice and Data,40086,Communication and Computing,5028,,20/12/2023,0189486,9253.54,Revenue,EE - Orange,16486,,
Chorley Borough Council,http://statistics.data.gov.uk/id/local-authority/30UE,Homelessness,1075,GROW - Commercial Services,Laundry,40042,"Clothing, Uniforms and Laundry",5025,"In respect of Laundry services for period , 01/04/23 - 31/03/2024, For , Cotswold Supported housing, Cotswold Rd , Chorley",13/12/2023,0189227,1290.54,Revenue,Elis UK Ltd,20799,,
Chorley Borough Council,http://statistics.data.gov.uk/id/local-authority/30UE,Corporate Management,1008,EARL - Communities,Other Contributions,40145,Grants and Subscriptions,5031,warm spaces,13/12/2023,0189257,500,Revenue,Emerging Futures CiC,81216,,
Chorley Borough Council,http://statistics.data.gov.uk/id/local-authority/30UE,Homelessness,1075,EARL - Communities,Grants - Tenant Participation,40142,Grants and Subscriptions,5031,0,20/12/2023,0189448,625,Revenue,Emma Tonge,85647,,
Chorley Borough Council,http://statistics.data.gov.uk/id/local-authority/30UE,Central Support Services,1009,CUST - Customer & Digital,IT Software - Annual Licences,40101,Communication and Computing,5028,"�	1x GIS Professional Basic Named User License - 1,148, �	10x ArcGIS Online Editor Named User Licenses-3,190.00, �	10x ArcGIS O",06/12/2023,0188738,6848,Revenue,ESRI (UK) Ltd,19692,,
Chorley Borough Council,http://statistics.data.gov.uk/id/local-authority/30UE,Business Support,1095,GROW - Commercial Services,Internet Charges,40104,Communication and Computing,5028,"Operate, Platform and Calls & IP invoices for financial year April 2023 to March 2024",06/12/2023,0188771,2450,Revenue,Essensys Ltd,77836,,
Chorley Borough Council,http://statistics.data.gov.uk/id/local-authority/30UE,Service Management & Support,1009,CUST - Customer & Digital,Supplies-Grounds Maintenance,40025,"Equipment, Furniture & Materia",5023,Leaf sucker hire,20/12/2023,0188754,630,Revenue,F R Sharrock Ltd,18091,,
Chorley Borough Council,http://statistics.data.gov.uk/id/local-authority/30UE,Service Management & Support,1009,CUST - Customer & Digital,Tools & Equipment - Purchase,40003,"Equipment, Furniture & Materia",5023,Supply 1 x Stihl BR600 Backpack Blower. Deliver to Bengal St,20/12/2023,0189635,515.83,Revenue,F R Sharrock Ltd,18091,,
Chorley Borough Council,http://statistics.data.gov.uk/id/local-authority/30UE,Central Support Services,1009,EARL - Communities,Other Salaries Costs,14050,Direct Employee Expenses,5001,Consultancy Fee,06/12/2023,0187644,4200,Revenue,Fifty One Management,89628,,
Chorley Borough Council,http://statistics.data.gov.uk/id/local-authority/30UE,Central Support Services,1009,EARL - Communities,Other Salaries Costs,14050,Direct Employee Expenses,5001,Consultancy Fee,20/12/2023,0189242,4900,Revenue,Fifty One Management,89628,,
Chorley Borough Council,http://statistics.data.gov.uk/id/local-authority/30UE,Building Control,1090,PLAN - Planning & Development,Professional Fees,40063,Services,5027,", Contractor Fees for NAME REDACTED new contract commencing 25.09.2023 for 6 months",13/12/2023,0189414,3125,Revenue,Fraser Building Management Services Limited,89405,,
Chorley Borough Council,http://statistics.data.gov.uk/id/local-authority/30UE,Central Support Services,1009,EARL - Communities,Children's Activities,40188,Miscellaneous Expenses,5034,HAF,20/12/2023,0189539,1024,Revenue,Galaxy Cheerleading Club,78261,,
Chorley Borough Council,http://statistics.data.gov.uk/id/local-authority/30UE,Homelessness,1075,EARL - Communities,Grants - Tenant Participation,40142,Grants and Subscriptions,5031,0,20/12/2023,0189438,625,Revenue,Gary MacFarlane,85416,,
Chorley Borough Council,http://statistics.data.gov.uk/id/local-authority/30UE,Corporate Management,1008,EARL - Communities,Other Contributions,40145,Grants and Subscriptions,5031,warm spaces,13/12/2023,0189258,500,Revenue,Genesis Care (North West) Ltd,53287,,
Chorley Borough Council,http://statistics.data.gov.uk/id/local-authority/30UE,Tourism,1039,GOVN - Policy & Governance,Publicity - Advertising,40157,Miscellaneous Expenses,5034,"Bus advertising for Christmas in Chorley campaign - 10 lower rears, 4 streetliners",06/12/2023,0188889,1680,Revenue,Global,82941,,
Chorley Borough Council,http://statistics.data.gov.uk/id/local-authority/30UE,Service Management & Support,1009,CUST - Customer & Digital,Vehicles and Plant Maintenance,30045,Direct Transport Costs,5016,As per Job sheet PEN3341,20/12/2023,0189483,2035.81,Revenue,Go Plant Fleet Services Ltd,80857,,
Chorley Borough Council,http://statistics.data.gov.uk/id/local-authority/30UE,Service Management & Support,1009,CUST - Customer & Digital,Hire Of Vehicles and Plant,30028,Contrct Hire & Operating Lease,5018,"Extension of the sweepers, 12 month Contract - Start date 02/09/22, , Johnston CN101 (VIN REDACTED) � contract hire only - 1,290.17 ",20/12/2023,0189505,6153.73,Revenue,Go Plant Fleet Services Ltd,80857,,
Chorley Borough Council,http://statistics.data.gov.uk/id/local-authority/30UE,Service Management & Support,1009,CUST - Customer & Digital,Hire Of Vehicles and Plant,30028,Contrct Hire & Operating Lease,5018,"Extension of the sweepers, 12 month Contract - Start date 02/09/22, , Johnston CN101 (VIN REDACTED) � contract hire only - 1,290.17 ",20/12/2023,0189583,10974.28,Revenue,Go Plant Fleet Services Ltd,80857,,
Chorley Borough Council,http://statistics.data.gov.uk/id/local-authority/30UE,Central Support Services,1009,CUST - Customer & Digital,Printing,40043,"Printing, Stationery & General",5026,Garden Waste Subscription payments 2023/24,06/12/2023,0188432,1424.17,Revenue,GoCardless,77457,,
Chorley Borough Council,http://statistics.data.gov.uk/id/local-authority/30UE,Central Support Services,1009,CUST - Customer & Digital,Professional Fees,14011,Direct Employee Expenses,5001,Chorley Borough Council v Benacher Ani CH0000050/3,20/12/2023,0189530,1125,Revenue,Greenhalgh Kerr,77764,,
Chorley Borough Council,http://statistics.data.gov.uk/id/local-authority/30UE,Open Spaces,1038,CUST - Customer & Digital,Playground Equipment,40008,"Equipment, Furniture & Materia",5023,"Supply and install 1.5m x 1.5m matt for trampoline, with springs Includes removal and disposal of old, 1.5m x 1.5m Jumping Matt a",20/12/2023,0188672,2144.89,Revenue,Hags Smp LTD,22492,,
Chorley Borough Council,http://statistics.data.gov.uk/id/local-authority/30UE,Tourism,1039,GOVN - Policy & Governance,Misc Expenses,40200,Miscellaneous Expenses,5034,Winter Wonderland: Provision and delivery of red diesel for the Winter Wonderland attraction on Cleveland Street carpark Chorley.,06/12/2023,0188884,2290.37,Revenue,Harrison Oils Ltd,76429,,
Chorley Borough Council,http://statistics.data.gov.uk/id/local-authority/30UE,Homelessness,1075,EARL - Communities,Grants - Tenant Participation,40142,Grants and Subscriptions,5031,0,20/12/2023,0189446,625,Revenue,Helen Millward,87008,,
Chorley Borough Council,http://statistics.data.gov.uk/id/local-authority/30UE,Tourism,1039,GOVN - Policy & Governance,External Contractor,40198,Miscellaneous Expenses,5034,Provision of Winter Wonderland Tips & Toilets - First Payment,22/12/2023,0189230,6600,Revenue,Helsby Tents,89715,,
Chorley Borough Council,http://statistics.data.gov.uk/id/local-authority/30UE,Central Support Services,1009,GOVN - Policy & Governance,HR Recruitment - Advertising,15300,Indirect Employee Expenses,5002,Advertising in MJ Jobs/Local Gov Jobs,13/12/2023,0189212,6600,Revenue,Hemming Group Ltd,17165,,
Chorley Borough Council,http://statistics.data.gov.uk/id/local-authority/30UE,Corporate Management,1008,EARL - Communities,Other Contributions,40145,Grants and Subscriptions,5031,warem spaces,13/12/2023,0189259,500,Revenue,Hillside Methodist Church,18468,,
Chorley Borough Council,http://statistics.data.gov.uk/id/local-authority/30UE,Capital,Capital,GOVN - Policy & Governance,Purchase Money,03027,Capital Expenditure,Capital,land at ADDRESS REDACTED,20/12/2023,0189475,2000,Capital,HM Revenue & Customs,56499,,
Chorley Borough Council,http://statistics.data.gov.uk/id/local-authority/30UE,Capital,Capital,GOVN - Policy & Governance,Other Contractor,03012,Capital Expenditure,Capital,SDLT on Purchase,22/12/2023,0189538,78250,Capital,HM Revenue & Customs,56499,,
Chorley Borough Council,http://statistics.data.gov.uk/id/local-authority/30UE,Capital,Capital,GOVN - Policy & Governance,Legal Fees - Acquisition,03019,Capital Expenditure,Capital,SDLT,22/12/2023,0189751,245815,Capital,HM Revenue & Customs,56499,,
Chorley Borough Council,http://statistics.data.gov.uk/id/local-authority/30UE,Corporate Management,1008,GOVN - Policy & Governance,Other Fees,40212,Miscellaneous Expenses,5034,Subsidy for the provision of a meals on wheels service in Chorley from 1 April 2023 to 31 March 2024,20/12/2023,0189624,3196.62,Revenue,I Care GB Ltd,77247,,
Chorley Borough Council,http://statistics.data.gov.uk/id/local-authority/30UE,Business Support,1095,GROW - Commercial Services,Refreshments,40036,Catering,5024,"Per your invoice 6101301123, milk deliveries to Strawberry Fields November 2023",06/12/2023,0188870,543.12,Revenue,I W Critchley & Son,77615,,
Chorley Borough Council,http://statistics.data.gov.uk/id/local-authority/30UE,Central Support Services,1009,GOVN - Policy & Governance,Refuse Collection,20037,Cleaning and Domestic Supplies,5012,"Supply of all hygiene services to the council service period 01/01/24-31/03/24, invoice number 60424205",20/12/2023,0189537,3539.49,Revenue,Initial,78488,,
Chorley Borough Council,http://statistics.data.gov.uk/id/local-authority/30UE,Regulatory Services,1048,PLAN - Planning & Development,Training Course Fees,17010,Indirect Employee Expenses,5002,National Training Confrence for NAME REDACTED re EVE39964 3 days and 3 nights 14.11.2023 - 17.11.2023,06/12/2023,0188742,923.95,Revenue,Institute Of Licensing,16987,,
Chorley Borough Council,http://statistics.data.gov.uk/id/local-authority/30UE,Tourism,1039,GOVN - Policy & Governance,Publicity - Advertising,40157,Miscellaneous Expenses,5034,Full page in both the PR Pointer and The Handbook publications - Decembers edition to promote Christmas in Chorley,13/12/2023,0188670,578,Revenue,Jam Design and Publications Ltd,76061,,
Chorley Borough Council,http://statistics.data.gov.uk/id/local-authority/30UE,Homelessness,1075,EARL - Communities,Grants - Tenant Participation,40142,Grants and Subscriptions,5031,0,20/12/2023,0189442,625,Revenue,Jason O`Flaherty,85502,,
Chorley Borough Council,http://statistics.data.gov.uk/id/local-authority/30UE,Homelessness,1075,EARL - Communities,Grants - Tenant Participation,40142,Grants and Subscriptions,5031,0,20/12/2023,0189439,625,Revenue,Joyce Harasimiuk,85418,,
Chorley Borough Council,http://statistics.data.gov.uk/id/local-authority/30UE,Central Support Services,1009,GOVN - Policy & Governance,Legal Fees,40171,Miscellaneous Expenses,5034,Settlement Agreement for NAME REDACTED - Invoice No 1457 - paying the account as per the agreement in settlement of our liabilit,13/12/2023,0186099,700,Revenue,KBL Solicitors LLP,89629,,
Chorley Borough Council,http://statistics.data.gov.uk/id/local-authority/30UE,Economic Development,1096,GROW - Commercial Services,Refuse Collection,20037,Cleaning and Domestic Supplies,5012,"Market Walk/Market Walk Extension/Markets/Calico Lounge/Reel Cinema Waste Removal 01.04.2023 - 31.03.2024:, , Market Walk YARD 1 ",13/12/2023,0189279,1989,Revenue,Kenny Waste Management Ltd,88641,,
Chorley Borough Council,http://statistics.data.gov.uk/id/local-authority/30UE,Capital,Capital,GOVN - Policy & Governance,Other Contractor,03012,Capital Expenditure,Capital,"units 2, 3, 4 and 4a",22/12/2023,0188524,1597500,Capital,Kerax Limited,89632,,
Chorley Borough Council,http://statistics.data.gov.uk/id/local-authority/30UE,Homelessness,1075,EARL - Communities,Grants - Tenant Participation,40142,Grants and Subscriptions,5031,0,20/12/2023,0189444,625,Revenue,Kevin Eardley,85644,,
Chorley Borough Council,http://statistics.data.gov.uk/id/local-authority/30UE,Homelessness,1075,EARL - Communities,Service Fees,40056,Services,5027,01/04/2023  31/03/2024 - PROVISION OF YOUNG PEOPLES - HOUSING SUPPORT,13/12/2023,0188871,15000,Revenue,Key Unlocking Futures Limited,61252,,
Chorley Borough Council,http://statistics.data.gov.uk/id/local-authority/30UE,Control Accounts,Control,GOVN - Policy & Governance,General Balances,00100,Balance Sheet,Balance,Labour Councillors Association - Nov 23 Monthly Deductions from Payroll,13/12/2023,0189403,1882.62,Revenue,Labour Councillors Association,17577,,
Chorley Borough Council,http://statistics.data.gov.uk/id/local-authority/30UE,Capital,Capital,GOVN - Policy & Governance,Legal Fees - Acquisition,03019,Capital Expenditure,Capital,Woodlands site Southport Rd,22/12/2023,0188575,500000,Capital,Lancashire County Council,20027,,
Chorley Borough Council,http://statistics.data.gov.uk/id/local-authority/30UE,Capital,Capital,EARL - Communities,Grants,03002,Capital Expenditure,Capital,ADDRESS REDACTED,06/12/2023,0188692,1875.65,Capital,Lancashire County Council,17758,,
Chorley Borough Council,http://statistics.data.gov.uk/id/local-authority/30UE,Precepts and Collection Fund,Precepts,GOVN - Policy & Governance,LCC Precept,02009,Precepts & Collection Fund,Precept,LCC council tax precept,22/12/2023,0189262,5971419,Revenue,Lancashire County Council,18386,,
Chorley Borough Council,http://statistics.data.gov.uk/id/local-authority/30UE,Collection Fund Revenue Accoun,0,GOVN - Policy & Governance,NNDR County Share,02036,Precepts & Collection Fund,Precept,LCC bus Rates precepts,22/12/2023,0189262,244995,Revenue,Lancashire County Council,18386,,
Chorley Borough Council,http://statistics.data.gov.uk/id/local-authority/30UE,Central Support Services,1009,GOVN - Policy & Governance,Professional Fees,40063,Services,5027,Woodlands Sale of land at Chorley Cemetery,20/12/2023,0189310,2000,Revenue,Lancashire County Council,17758,,
Chorley Borough Council,http://statistics.data.gov.uk/id/local-authority/30UE,Capital,Capital,GOVN - Policy & Governance,Legal Fees - Acquisition,03019,Capital Expenditure,Capital,balance of purchase price for woodlands,22/12/2023,0189376,4626301.5,Capital,Lancashire County Council,20027,,
Chorley Borough Council,http://statistics.data.gov.uk/id/local-authority/30UE,Central Support Services,1009,CUST - Customer & Digital,Clinical Waste Collection,50007,Private Contractors,5042,Domestic clinical waste collections 2023/24,20/12/2023,0189372,2259.29,Revenue,Lancashire Environmental Services,82309,,
Chorley Borough Council,http://statistics.data.gov.uk/id/local-authority/30UE,Central Support Services,1009,CUST - Customer & Digital,Clinical Waste Collection,50007,Private Contractors,5042,Domestic clinical waste collections 2023/24,20/12/2023,0189375,2997.38,Revenue,Lancashire Environmental Services,82309,,
Chorley Borough Council,http://statistics.data.gov.uk/id/local-authority/30UE,Central Support Services,1009,GROW - Commercial Services,General Repairs - Reactive,20004,Repairs Maintenance & Alts,5005,"Reactive Gas, Air Conditioning and Plumbing Repair Works @",20/12/2023,0189336,1420.42,Revenue,Lancashire Gas Services Ltd,78192,,
Chorley Borough Council,http://statistics.data.gov.uk/id/local-authority/30UE,Business Support,1095,GROW - Commercial Services,General Repairs - Reactive,20004,Repairs Maintenance & Alts,5005,"Reactive Gas, Air Conditioning and Plumbing Repair Works @ Primrose Gardens",20/12/2023,0189338,1084.99,Revenue,Lancashire Gas Services Ltd,78192,,
Chorley Borough Council,http://statistics.data.gov.uk/id/local-authority/30UE,Service Management & Support,1009,CUST - Customer & Digital,Vehicles and Plant Maintenance,30045,Direct Transport Costs,5016,as per Customer job number 7923,13/12/2023,0188749,862.53,Revenue,Lancashire Waste Services,78129,,
Chorley Borough Council,http://statistics.data.gov.uk/id/local-authority/30UE,Precepts and Collection Fund,Precepts,GOVN - Policy & Governance,LCFA Precept,02011,Precepts & Collection Fund,Precept,LCFA CTAX PRECEPT,22/12/2023,0188764,312066,Revenue,Lancs Combined Fire Authority,17768,,
Chorley Borough Council,http://statistics.data.gov.uk/id/local-authority/30UE,Collection Fund Revenue Accoun,0,GOVN - Policy & Governance,NNDR Fire Share,02037,Precepts & Collection Fund,Precept,LFCA BUSINESS RATES PRECEPT,22/12/2023,0188764,27221,Revenue,Lancs Combined Fire Authority,17768,,
Chorley Borough Council,http://statistics.data.gov.uk/id/local-authority/30UE,Central Support Services,1009,GROW - Commercial Services,Consultants` Fees,40077,Services,5027,Asset Valuations for the 2022-23 Statement of Accounts,20/12/2023,0189618,7579,Revenue,Lea Hough & Co LLP,76318,,
Chorley Borough Council,http://statistics.data.gov.uk/id/local-authority/30UE,Business Support,1095,GROW - Commercial Services,Cleaning/Attendants' Services,20041,Cleaning and Domestic Supplies,5012,"Carpet Cleaning for , A.	120.00 plus vat, B.	120.00 plus vat, C.	120.00 plus vat, , D.	180.00 plus vat, E.	160.00 plus vat",06/12/2023,0188667,660,Revenue,Leyland Cleaning Services Limited,21612,,
Chorley Borough Council,http://statistics.data.gov.uk/id/local-authority/30UE,Central Support Services,1009,EARL - Communities,Legal Fees,40171,Miscellaneous Expenses,5034,NAME REDACTED - Exchange Chambers Legal rep,20/12/2023,0189625,1500,Revenue,Lisa Feng,89592,,
Chorley Borough Council,http://statistics.data.gov.uk/id/local-authority/30UE,Central Support Services,1009,GOVN - Policy & Governance,HR Approved Occ Health Fees,15201,Indirect Employee Expenses,5002,Counselling for staff in November 2023,20/12/2023,0189562,540,Revenue,Livewell Counselling Service,63084,,
Chorley Borough Council,http://statistics.data.gov.uk/id/local-authority/30UE,Service Management & Support,1009,CUST - Customer & Digital,Grounds Maintenance Contractor,20043,Grounds Maintenance Costs,5013,Invoive 70,20/12/2023,0189233,4800,Revenue,M J Walker,62044,,
Chorley Borough Council,http://statistics.data.gov.uk/id/local-authority/30UE,Development Control,1091,GOVN - Policy & Governance,Legal Fees,40171,Miscellaneous Expenses,5034,Counsel`s advice on matter- raised on behalf of NAME REDACTED,20/12/2023,0189492,975,Revenue,Matthew Henderson,77746,,
Chorley Borough Council,http://statistics.data.gov.uk/id/local-authority/30UE,Business Support,1095,GOVN - Policy & Governance,Professional Fees,40063,Services,5027,"Accounting fee - Strawberry Fields service charge - Period 2022/23 1,275",06/12/2023,0185542,1275,Revenue,Menzies LLP,76095,,
Chorley Borough Council,http://statistics.data.gov.uk/id/local-authority/30UE,Business Support,1095,GOVN - Policy & Governance,Professional Fees,40063,Services,5027,Review of the service charge accounts for Market Walk and Market Walk Extension for 2022/23,06/12/2023,0185543,1275,Revenue,Menzies LLP,76095,,
Chorley Borough Council,http://statistics.data.gov.uk/id/local-authority/30UE,Central Support Services,1009,GROW - Commercial Services,General Repairs - Reactive,20004,Repairs Maintenance & Alts,5005,Infrastructure Reactive Drainage and Groundworks / Repair Works,13/12/2023,0188892,560,Revenue,Michael Roe,78294,,
Chorley Borough Council,http://statistics.data.gov.uk/id/local-authority/30UE,Collection Fund Revenue Accoun,0,GOVN - Policy & Governance,NNDR Central Share,02034,Precepts & Collection Fund,Precept,Central Share BR,22/12/2023,0188905,1062692,Revenue,Ministry of Housing Communities & Local Government,16280,,
Chorley Borough Council,http://statistics.data.gov.uk/id/local-authority/30UE,Collection Fund Revenue Accoun,0,GOVN - Policy & Governance,NNDR Central Share,02034,Precepts & Collection Fund,Precept,Deficit collection funds,22/12/2023,0188905,26175,Revenue,Ministry of Housing Communities & Local Government,16280,,
Chorley Borough Council,http://statistics.data.gov.uk/id/local-authority/30UE,Capital,Capital,EARL - Communities,Grants,03002,Capital Expenditure,Capital,,06/12/2023,0188835,15763.9,Capital,Mint Northwest Ltd,65607,,
Chorley Borough Council,http://statistics.data.gov.uk/id/local-authority/30UE,Capital,Capital,EARL - Communities,Grants,03002,Capital Expenditure,Capital,,06/12/2023,0188836,5930.56,Capital,Mint Northwest Ltd,65607,,
Chorley Borough Council,http://statistics.data.gov.uk/id/local-authority/30UE,Capital,Capital,EARL - Communities,Grants,03002,Capital Expenditure,Capital,ADDRESS REDACTED,20/12/2023,0189474,4628.41,Capital,Mint Northwest Ltd,65607,,
Chorley Borough Council,http://statistics.data.gov.uk/id/local-authority/30UE,Capital,Capital,EARL - Communities,Grants,03002,Capital Expenditure,Capital,ADDRESS REDACTED,20/12/2023,0189603,6455.84,Capital,Mint Northwest Ltd,65607,,
Chorley Borough Council,http://statistics.data.gov.uk/id/local-authority/30UE,Capital,Capital,EARL - Communities,Grants,03002,Capital Expenditure,Capital,,20/12/2023,0189655,7459.1,Capital,Mint Northwest Ltd,65607,,
Chorley Borough Council,http://statistics.data.gov.uk/id/local-authority/30UE,Capital,Capital,EARL - Communities,Grants,03002,Capital Expenditure,Capital,ADDRESS REDACTED,20/12/2023,0189658,6218.63,Capital,Mint Northwest Ltd,65607,,
Chorley Borough Council,http://statistics.data.gov.uk/id/local-authority/30UE,Private Sector HSG Renewal,1073,EARL - Communities,External Contractor,40198,Miscellaneous Expenses,5034,Ref 201122,13/12/2023,0188904,840,Revenue,Mobility Care Services,70841,,
Chorley Borough Council,http://statistics.data.gov.uk/id/local-authority/30UE,Private Sector HSG Renewal,1073,EARL - Communities,External Contractor,40198,Miscellaneous Expenses,5034,Ref 201123,13/12/2023,0188904,940,Revenue,Mobility Care Services,70841,,
Chorley Borough Council,http://statistics.data.gov.uk/id/local-authority/30UE,Elections,1012,GOVN - Policy & Governance,Computer Software-Maintenance,40107,Communication and Computing,5028,Modern Polling for Year 2-,06/12/2023,0188535,31849.1,Revenue,Modern Democracy Limited,87072,,
Chorley Borough Council,http://statistics.data.gov.uk/id/local-authority/30UE,Central Support Services,1009,PLAN - Planning & Development,Misc Expenses,40200,Miscellaneous Expenses,5034,Installation of 3 Lectern Signs with Twin Legs at Buckshaw Village,13/12/2023,0188625,558,Revenue,Mr Stephen Weatherburn,89546,,
Chorley Borough Council,http://statistics.data.gov.uk/id/local-authority/30UE,Business Support,1095,GROW - Commercial Services,Planned Maintenance,20006,Repairs Maintenance & Alts,5005,"Mobile signal booster for entire Ground Floor and specified areas on Floors 1 and 2 at Strawberry Fields, Digital Office Park",13/12/2023,0188533,14428,Revenue,MSS Mobile Technology LTD,89627,,
Chorley Borough Council,http://statistics.data.gov.uk/id/local-authority/30UE,Economic Development,1096,GROW - Commercial Services,General Subscriptions,40146,Grants and Subscriptions,5031,Annual subscription for Nabma 2023/24,13/12/2023,0188691,768,Revenue,Nabma,16257,,
Chorley Borough Council,http://statistics.data.gov.uk/id/local-authority/30UE,Development Control,1091,PLAN - Planning & Development,Statutory Notices,40160,Miscellaneous Expenses,5034,Planning Public Notices to appear in the Chorley Guardian April 2023 to March 2024,13/12/2023,0188570,595.68,Revenue,National World Publishing Limited,20072,,
Chorley Borough Council,http://statistics.data.gov.uk/id/local-authority/30UE,Development Control,1091,PLAN - Planning & Development,Statutory Notices,40160,Miscellaneous Expenses,5034,Planning Public Notices to appear in the Chorley Guardian April 2023 to March 2024,13/12/2023,0188780,744.6,Revenue,National World Publishing Limited,20072,,
Chorley Borough Council,http://statistics.data.gov.uk/id/local-authority/30UE,Homelessness,1075,EARL - Communities,Grants - Tenant Participation,40142,Grants and Subscriptions,5031,0,20/12/2023,0189451,625,Revenue,Nicholas J Roden,87102,,
Chorley Borough Council,http://statistics.data.gov.uk/id/local-authority/30UE,Central Support Services,1009,GOVN - Policy & Governance,Publicity - Advertising,40157,Miscellaneous Expenses,5034,Filming and Editing for the winter Chorley Council Promotional Films (Astley Grotto and Winter Wonderland),20/12/2023,0189647,1500,Revenue,North Film Studios Limited,85582,,
Chorley Borough Council,http://statistics.data.gov.uk/id/local-authority/30UE,Central Support Services,1009,GROW - Commercial Services,Fixtures & Fittings - Purchase,20027,Fixtures and Fittings,5010,"Keysecure floor standing key cabinet. Hooks for 500 bunches of keys. Code: KSE500, As per Quote QU002183, , Order for NAME REDACTED",13/12/2023,0185818,1700,Revenue,Northern Storage & Interiors Ltd,89601,,
Chorley Borough Council,http://statistics.data.gov.uk/id/local-authority/30UE,Central Support Services,1009,CUST - Customer & Digital,Hire Of Vehicles and Plant,30028,Contrct Hire & Operating Lease,5018,Vehicle hire: 3.5t Luton Van with tail-lift (April 2023- March 2024) Current Reg: VIN REDACTED,06/12/2023,0188689,766.08,Revenue,Northgate Vehicle Hire (NW) Ltd,17360,,
Chorley Borough Council,http://statistics.data.gov.uk/id/local-authority/30UE,Service Management Support,1009,GROW - Commercial Services,Electricity,20013,Energy Costs,5006,,06/12/2023,0188798,681.64,Revenue,Npower Commercial Gas,16814,,
Chorley Borough Council,http://statistics.data.gov.uk/id/local-authority/30UE,Open Spaces,1038,GROW - Commercial Services,Electricity,20013,Energy Costs,5006,,06/12/2023,0188800,3105.13,Revenue,Npower Commercial Gas,16814,,
Chorley Borough Council,http://statistics.data.gov.uk/id/local-authority/30UE,Open Spaces,1038,GROW - Commercial Services,Electricity,20013,Energy Costs,5006,,06/12/2023,0188802,932.79,Revenue,Npower Commercial Gas,16814,,
Chorley Borough Council,http://statistics.data.gov.uk/id/local-authority/30UE,Business Support,1095,GROW - Commercial Services,Electricity,20013,Energy Costs,5006,,06/12/2023,0188807,11625.71,Revenue,Npower Commercial Gas,16814,,
Chorley Borough Council,http://statistics.data.gov.uk/id/local-authority/30UE,Homelessness,1075,GROW - Commercial Services,Electricity,20013,Energy Costs,5006,,06/12/2023,0188808,1509.22,Revenue,Npower Commercial Gas,16814,,
Chorley Borough Council,http://statistics.data.gov.uk/id/local-authority/30UE,Central Support Services,1009,GROW - Commercial Services,Electricity,20013,Energy Costs,5006,,06/12/2023,0188809,1200.89,Revenue,Npower Commercial Gas,16814,,
Chorley Borough Council,http://statistics.data.gov.uk/id/local-authority/30UE,Recreation & Sport,1037,GROW - Commercial Services,Electricity,20013,Energy Costs,5006,Clayton Brook Village Hall,06/12/2023,0188813,508.91,Revenue,Npower Commercial Gas,16814,,
Chorley Borough Council,http://statistics.data.gov.uk/id/local-authority/30UE,Central Support Services,1009,GROW - Commercial Services,Electricity,20013,Energy Costs,5006,,06/12/2023,0188817,8782.32,Revenue,Npower Commercial Gas,16814,,
Chorley Borough Council,http://statistics.data.gov.uk/id/local-authority/30UE,Parking Services,1066,GROW - Commercial Services,Electricity,20013,Energy Costs,5006,,06/12/2023,0188818,1465.99,Revenue,Npower Commercial Gas,16814,,
Chorley Borough Council,http://statistics.data.gov.uk/id/local-authority/30UE,Recreation & Sport,1037,GROW - Commercial Services,Electricity,20013,Energy Costs,5006,,06/12/2023,0188823,3130.81,Revenue,Npower Commercial Gas,16814,,
Chorley Borough Council,http://statistics.data.gov.uk/id/local-authority/30UE,Parking Services,1066,GROW - Commercial Services,Electricity,20013,Energy Costs,5006,,06/12/2023,0188828,5828.34,Revenue,Npower Commercial Gas,16814,,
Chorley Borough Council,http://statistics.data.gov.uk/id/local-authority/30UE,Central Support Services,1009,GROW - Commercial Services,Electricity,20013,Energy Costs,5006,,06/12/2023,0188832,2784.86,Revenue,Npower Commercial Gas,16814,,
Chorley Borough Council,http://statistics.data.gov.uk/id/local-authority/30UE,Central Support Services,1009,GROW - Commercial Services,Electricity,20013,Energy Costs,5006,,06/12/2023,0188833,8295.94,Revenue,Npower Commercial Gas,16814,,
Chorley Borough Council,http://statistics.data.gov.uk/id/local-authority/30UE,Business Support,1095,GROW - Commercial Services,Electricity,20013,Energy Costs,5006,,06/12/2023,0188856,1063.51,Revenue,Npower Commercial Gas,16814,,
Chorley Borough Council,http://statistics.data.gov.uk/id/local-authority/30UE,Recreation & Sport,1037,GROW - Commercial Services,Electricity,20013,Energy Costs,5006,,06/12/2023,0188857,3155.66,Revenue,Npower Commercial Gas,16814,,
Chorley Borough Council,http://statistics.data.gov.uk/id/local-authority/30UE,Recreation & Sport,1037,GROW - Commercial Services,Electricity,20013,Energy Costs,5006,,06/12/2023,0188858,1276.52,Revenue,Npower Commercial Gas,16814,,
Chorley Borough Council,http://statistics.data.gov.uk/id/local-authority/30UE,Central Support Services,1009,GROW - Commercial Services,Electricity,20013,Energy Costs,5006,,06/12/2023,0188860,2110.79,Revenue,Npower Commercial Gas,16814,,
Chorley Borough Council,http://statistics.data.gov.uk/id/local-authority/30UE,Recreation & Sport,1037,GROW - Commercial Services,Electricity,20013,Energy Costs,5006,,06/12/2023,0188862,6821.73,Revenue,Npower Commercial Gas,16814,,
Chorley Borough Council,http://statistics.data.gov.uk/id/local-authority/30UE,Recreation & Sport,1037,GROW - Commercial Services,Electricity,20013,Energy Costs,5006,,06/12/2023,0188863,20037.71,Revenue,Npower Commercial Gas,16814,,
Chorley Borough Council,http://statistics.data.gov.uk/id/local-authority/30UE,Recreation & Sport,1037,GROW - Commercial Services,Electricity,20013,Energy Costs,5006,,06/12/2023,0188865,724.01,Revenue,Npower Commercial Gas,16814,,
Chorley Borough Council,http://statistics.data.gov.uk/id/local-authority/30UE,Business Support,1095,GROW - Commercial Services,Electricity,20013,Energy Costs,5006,,06/12/2023,0188866,1630.26,Revenue,Npower Commercial Gas,16814,,
Chorley Borough Council,http://statistics.data.gov.uk/id/local-authority/30UE,Parking Services,1066,GROW - Commercial Services,Electricity,20013,Energy Costs,5006,,06/12/2023,0188869,929.86,Revenue,Npower Commercial Gas,16814,,
Chorley Borough Council,http://statistics.data.gov.uk/id/local-authority/30UE,Business Support,1095,GROW - Commercial Services,Electricity,20013,Energy Costs,5006,Invoice period : 1 Oct 2021 to 31 Oct 2021,20/12/2023,0189668,3531.98,Revenue,Npower Commercial Gas,16814,,
Chorley Borough Council,http://statistics.data.gov.uk/id/local-authority/30UE,Homelessness,1075,GROW - Commercial Services,Electricity,20013,Energy Costs,5006,Invoice period : 1 Oct 2023 to 31 Oct 2023,20/12/2023,0189669,671.68,Revenue,Npower Commercial Gas,16814,,
Chorley Borough Council,http://statistics.data.gov.uk/id/local-authority/30UE,Parking Services,1066,GROW - Commercial Services,External Contractors,50008,Private Contractors,5042,"Provision of off street car park enforcement for period 01.04.23 - 31.03.24, , Rate: 18.40 ph, , Monday - Saturday Parking Atten",13/12/2023,0188773,3937.6,Revenue,NSL Limited,67253,,
Chorley Borough Council,http://statistics.data.gov.uk/id/local-authority/30UE,Parking Services,1066,GROW - Commercial Services,External Contractors,50008,Private Contractors,5042,"Provision of off street car park enforcement for period 01.04.23 - 31.03.24, , Rate: 18.40 ph, , Monday - Saturday Parking Atten",13/12/2023,0189297,3919.2,Revenue,NSL Limited,67253,,
Chorley Borough Council,http://statistics.data.gov.uk/id/local-authority/30UE,Business Support,1095,GROW - Commercial Services,General Repairs - Reactive,20004,Repairs Maintenance & Alts,5005,"Painting works in Rooms 8 & 9 at DOP, Strawberry Fields. Scope and cost of works detailed in the email sent to NAME REDACTED from ",20/12/2023,0189661,580,Revenue,Optimum commercial interiors,87262,,
Chorley Borough Council,http://statistics.data.gov.uk/id/local-authority/30UE,Business Support,1095,GROW - Commercial Services,Electricity,20013,Energy Costs,5006,,06/12/2023,0188854,581.59,Revenue,Opus Energy Ltd,65093,,
Chorley Borough Council,http://statistics.data.gov.uk/id/local-authority/30UE,Tourism,1039,GOVN - Policy & Governance,Tools & Equipment - Hire,40004,"Equipment, Furniture & Materia",5023,Provision of Land train on 25th 26th November & 2nd 3rd December,20/12/2023,0187636,7500,Revenue,P White t/a Premier Novelty Wheels,73020,,
Chorley Borough Council,http://statistics.data.gov.uk/id/local-authority/30UE,Economic Development,1096,GROW - Commercial Services,Christmas Lights,40179,Miscellaneous Expenses,5034,"2 x stages for reindeer xmas lights - , Portland Sreet Carpark., Total 1566.67, , 1 x stage for Xmas Cone tree, All Seasons , Le",13/12/2023,0188557,2350,Revenue,Paul K Sound & Vision,16607,,
Chorley Borough Council,http://statistics.data.gov.uk/id/local-authority/30UE,Corporate Management,1008,GOVN - Policy & Governance,Agency Staff,13000,Direct Employee Expenses,5001,Charges for Interim Deputy Chief Executive,06/12/2023,0185413,16992,Revenue,Penna Plc,77833,,
Chorley Borough Council,http://statistics.data.gov.uk/id/local-authority/30UE,Corporate Management,1008,GOVN - Policy & Governance,Agency Staff,13000,Direct Employee Expenses,5001,Charges for Interim Deputy Chief Executive,06/12/2023,0187928,20768,Revenue,Penna Plc,77833,,
Chorley Borough Council,http://statistics.data.gov.uk/id/local-authority/30UE,Central Support Services,1009,GOVN - Policy & Governance,HR Approved Occ Health Fees,15201,Indirect Employee Expenses,5002,Occupational Health Charges for November 2023 - Invoice No 1362396,20/12/2023,0189533,916.18,Revenue,People Asset Management Limited,76487,,
Chorley Borough Council,http://statistics.data.gov.uk/id/local-authority/30UE,Central Support Services,1009,GOVN - Policy & Governance,HR Recruitment Expenses,15200,Indirect Employee Expenses,5002,,13/12/2023,0188792,646,Revenue,Personnel Checks Ltd,81534,,
Chorley Borough Council,http://statistics.data.gov.uk/id/local-authority/30UE,Central Support Services,1009,CUST - Customer & Digital,Computer - Support Services,40111,Communication and Computing,5028,modern management for cyber essentials workshop,06/12/2023,0188696,3000,Revenue,Phoenix Software Ltd,17046,,
Chorley Borough Council,http://statistics.data.gov.uk/id/local-authority/30UE,Central Support Services,1009,CUST - Customer & Digital,Consultants` Fees,40077,Services,5027,"Contract work to assist with planning enforcement, Contractor: NAME REDACTED Time period: 1 April 2023  31 March 2024",20/12/2023,0188897,1333,Revenue,Planning and PACE Solutions Ltd,82083,,
Chorley Borough Council,http://statistics.data.gov.uk/id/local-authority/30UE,Precepts and Collection Fund,Precepts,GOVN - Policy & Governance,LPA Precept,02010,Precepts & Collection Fund,Precept,PCC Council tx precept,22/12/2023,0188766,953889,Revenue,Police & Crime Commissioner,17438,,
Chorley Borough Council,http://statistics.data.gov.uk/id/local-authority/30UE,Business Support,1095,GROW - Commercial Services,Signs:Provision & Maintenance,20065,Grounds Maintenance Costs,5013,"As per quotation ref: DM19177/1. Re: Market Walk Large Tenant Sign - Luciano�s logo, , Replace one of the `more......` signs with",13/12/2023,0188755,1358.33,Revenue,Poppy Signs Ltd,21898,,
Chorley Borough Council,http://statistics.data.gov.uk/id/local-authority/30UE,Development Control,1091,PLAN - Planning & Development,Agency Staff,13000,Direct Employee Expenses,5001,"Planning consulting advice, including the consideration and determination of planning applications, Time period: 24 July 2023 - 3",13/12/2023,0188673,1665,Revenue,Power Planning Consulting Ltd,89435,,
Chorley Borough Council,http://statistics.data.gov.uk/id/local-authority/30UE,Other Short Term Creditors,0,GOVN - Policy & Governance,General Balances,00100,Balance Sheet,Balance,Prudential - Nov 23 Monthly Deductions from payroll,13/12/2023,0189404,1550,Revenue,PRUDENTIAL,18178,,
Chorley Borough Council,http://statistics.data.gov.uk/id/local-authority/30UE,Other Short Term Creditors,0,GOVN - Policy & Governance,General Balances,00100,Balance Sheet,Balance,Prudential AVC Wise - Nov 23 Monthly Deductions from payroll,13/12/2023,0189405,12249.38,Revenue,PRUDENTIAL,18178,,
Chorley Borough Council,http://statistics.data.gov.uk/id/local-authority/30UE,Interest Payable on Debt,1020,GOVN - Policy & Governance,Interest Payable,09009,Interest Payments,5067,Interest - LN509178,22/12/2023,0188762,23415,Revenue,Public Works Loans Board,21480,,
Chorley Borough Council,http://statistics.data.gov.uk/id/local-authority/30UE,Interest Payable on Debt,1020,GOVN - Policy & Governance,Interest Payable,09009,Interest Payments,5067,Interest - LN502694,22/12/2023,0189206,33825.96,Revenue,Public Works Loans Board,21480,,
Chorley Borough Council,http://statistics.data.gov.uk/id/local-authority/30UE,Interest Payable on Debt,1020,GOVN - Policy & Governance,Interest Payable,09009,Interest Payments,5067,Interest - LN502695,22/12/2023,0189206,32709.73,Revenue,Public Works Loans Board,21480,,
Chorley Borough Council,http://statistics.data.gov.uk/id/local-authority/30UE,Interest Payable on Debt,1020,GOVN - Policy & Governance,Interest Payable,09009,Interest Payments,5067,Interest - LN502696,22/12/2023,0189206,28556.7,Revenue,Public Works Loans Board,21480,,
Chorley Borough Council,http://statistics.data.gov.uk/id/local-authority/30UE,Interest Payable on Debt,1020,GOVN - Policy & Governance,Interest Payable,09009,Interest Payments,5067,Interest - LN502697,22/12/2023,0189206,21555.83,Revenue,Public Works Loans Board,21480,,
Chorley Borough Council,http://statistics.data.gov.uk/id/local-authority/30UE,Interest Payable on Debt,1020,GOVN - Policy & Governance,Interest Payable,09009,Interest Payments,5067,Interest - LN502698,22/12/2023,0189206,12293.42,Revenue,Public Works Loans Board,21480,,
Chorley Borough Council,http://statistics.data.gov.uk/id/local-authority/30UE,Corporate Management,1008,GOVN - Policy & Governance,Corp Training Organisational Development,17006,Indirect Employee Expenses,5002,Asbestos Awareness Training for 35 CH employees,20/12/2023,0188629,1050,Revenue,QHS Solutions Ltd,83886,,
Chorley Borough Council,http://statistics.data.gov.uk/id/local-authority/30UE,Central Support Services,1009,EARL - Communities,Children's Activities,40188,Miscellaneous Expenses,5034,Delivery of Chorley HAF programme Christmas 2023 as per grant agreement,06/12/2023,0188653,7680,Revenue,Quality Sport Holiday Clubs Ltd,89304,,
Chorley Borough Council,http://statistics.data.gov.uk/id/local-authority/30UE,Regulatory Services,1048,PLAN - Planning & Development,Taxi Testing & Vehicle Safety Report,40234,Services,5027,Taxi Tests,20/12/2023,0189663,778.2,Revenue,R.C.J Motors,63625,,
Chorley Borough Council,http://statistics.data.gov.uk/id/local-authority/30UE,Control Accounts,Control,GOVN - Policy & Governance,General Balances,00100,Balance Sheet,Balance,30 Oct 2023,22/12/2023,0187728,522,Revenue,Reward Gateway (UK) Ltd,66814,,
Chorley Borough Council,http://statistics.data.gov.uk/id/local-authority/30UE,Control Accounts,Control,GOVN - Policy & Governance,General Balances,00100,Balance Sheet,Balance,,22/12/2023,0188806,522,Revenue,Reward Gateway (UK) Ltd,66814,,
Chorley Borough Council,http://statistics.data.gov.uk/id/local-authority/30UE,Homelessness,1075,EARL - Communities,Other Contributions,40145,Grants and Subscriptions,5031,Loft insulation - ADDRESS REDACTED,20/12/2023,0189373,2026.35,Revenue,Rhea Projects Ltd,77753,,
Chorley Borough Council,http://statistics.data.gov.uk/id/local-authority/30UE,Non Domestic Rates Redistribut,0,GOVN - Policy & Governance,Tariff to Business Rates Pool,49002,Expenditure not in NCOS,0,Lans Business Rates Pool,22/12/2023,0188765,602095,Revenue,Ribble Valley Borough Council DIRECT DEBIT ONLY,21100,,
Chorley Borough Council,http://statistics.data.gov.uk/id/local-authority/30UE,Homelessness,1075,EARL - Communities,Grants - Tenant Participation,40142,Grants and Subscriptions,5031,0,20/12/2023,0189440,625,Revenue,Richard Palin,85421,,
Chorley Borough Council,http://statistics.data.gov.uk/id/local-authority/30UE,Central Support Services,1009,GOVN - Policy & Governance,Processional Routes,40177,Miscellaneous Expenses,5034,"Traffic management services for Chorley`s Remembrance Sunday Parade on Sunday 12th November 2023., As per quote 28172.",06/12/2023,0188542,792,Revenue,Road Safety Services Ltd,69457,,
Chorley Borough Council,http://statistics.data.gov.uk/id/local-authority/30UE,Elections,1012,GOVN - Policy & Governance,Postages,40082,Communication and Computing,5028,Postal votes county and borough by election first mail out,13/12/2023,0189330,3013.17,Revenue,Royal Mail Group Plc,17522,,
Chorley Borough Council,http://statistics.data.gov.uk/id/local-authority/30UE,Central Support Services,1009,CUST - Customer & Digital,Refreshments,40036,Catering,5024,,13/12/2023,0189388,3360,Revenue,Royal Mail Group Plc,17522,,
Chorley Borough Council,http://statistics.data.gov.uk/id/local-authority/30UE,Capital,Capital,EARL - Communities,Main Contractor,03007,Capital Expenditure,Capital,"Bird Boxes, Insect Houses and Bird Feeders for giveaway",20/12/2023,0188532,2651.5,Capital,RSPB Sales Limited,89690,,
Chorley Borough Council,http://statistics.data.gov.uk/id/local-authority/30UE,Central Support Services,1009,EARL - Communities,Misc Expenses,40200,Miscellaneous Expenses,5034,"2 of 2 payments for: Delivery of the Harmony, Project (10 Week Programme) As per grant agreement",20/12/2023,0189718,2862.5,Revenue,Saheliyaan,87252,,
Chorley Borough Council,http://statistics.data.gov.uk/id/local-authority/30UE,Corporate Management,1008,GOVN - Policy & Governance,Corp Training Organisational Development,17006,Indirect Employee Expenses,5002,Interview Skills Training,20/12/2023,0188402,2970,Revenue,Sales Geek Ltd,80963,,
Chorley Borough Council,http://statistics.data.gov.uk/id/local-authority/30UE,Planning Policy,1092,PLAN - Planning & Development,Consultants` Fees,40077,Services,5027,"Central Lancashire Local Plan GIS Support, Key outputs plus reactive GIS Mapping work linked to the preparation of the Central La",06/12/2023,0189216,900,Revenue,Salford GIS Ltd,16684,,
Chorley Borough Council,http://statistics.data.gov.uk/id/local-authority/30UE,Business Support,1095,GROW - Commercial Services,General Repairs - Reactive,20004,Repairs Maintenance & Alts,5005,"Your invoice INV13383., Call out to replace barrier to Strawberry Meadows following impact damage",13/12/2023,0189377,780,Revenue,Secure Door Systems,87323,,
Chorley Borough Council,http://statistics.data.gov.uk/id/local-authority/30UE,Homelessness,1075,GROW - Commercial Services,Security Service,40062,Services,5027,"To provide site concierge services at Cotswold House temporary accommodation facility, hours as outlined , by NAME REDACTED",13/12/2023,0188779,7559.1,Revenue,Secure FM Ltd,86928,,
Chorley Borough Council,http://statistics.data.gov.uk/id/local-authority/30UE,Business Support,1095,GROW - Commercial Services,Security Service,40062,Services,5027,"To provide evening Site Security Services at Market Walk Shopping Centre from 5pm until midnight, 7 days a week. Hourly rate 12.",13/12/2023,0188781,2843.18,Revenue,Secure FM Ltd,86928,,
Chorley Borough Council,http://statistics.data.gov.uk/id/local-authority/30UE,Business Support,1095,GROW - Commercial Services,Security Service,40062,Services,5027,"To provide site concierge services at , Tatton Gardens Extra Care facility, , hours as outlined by NAME REDACTED",06/12/2023,0188782,7559.1,Revenue,Secure FM Ltd,86928,,
Chorley Borough Council,http://statistics.data.gov.uk/id/local-authority/30UE,Planning Policy,1092,GROW - Commercial Services,Misc Expenses,40200,Miscellaneous Expenses,5034,"To provide evening Site Security Services at Chorley Bus Station and assistance at Market Walk, (As agreed with NAME REDACTED a minim",13/12/2023,0188882,544.8,Revenue,Secure FM Ltd,86928,,
Chorley Borough Council,http://statistics.data.gov.uk/id/local-authority/30UE,Business Support,1095,GROW - Commercial Services,Security Service,40062,Services,5027,To provide concierge services at Primrose Gardens Extra Care Facility as outlined by NAME REDACTED 7 days a week. Hourly rate ,13/12/2023,0189210,7559.1,Revenue,Secure FM Ltd,86928,,
Chorley Borough Council,http://statistics.data.gov.uk/id/local-authority/30UE,Capital,Capital,GROW - Commercial Services,Main Contractor,03007,Capital Expenditure,Capital,"All Seasons Leisure Centre, ASLC Reception Alteration Works, As per instructions from NAME REDACTED",20/12/2023,0189322,8943.11,Capital,Singleton and Smart,85371,,
Chorley Borough Council,http://statistics.data.gov.uk/id/local-authority/30UE,Capital,Capital,GROW - Commercial Services,Main Contractor,03007,Capital Expenditure,Capital,"All Seasons Leisure Centre, ASLC Spin Studio Demolition Works , As per instruction from NAME REDACTED",20/12/2023,0189421,7421.14,Capital,Singleton and Smart,85371,,
Chorley Borough Council,http://statistics.data.gov.uk/id/local-authority/30UE,Service Management & Support,1009,CUST - Customer & Digital,Tools & Equipment - Purchase,40003,"Equipment, Furniture & Materia",5023,Supply 20 holsters for a 30 month period (winter works),20/12/2023,0188607,1020,Revenue,Sixis Technology Ltd,88644,,
Chorley Borough Council,http://statistics.data.gov.uk/id/local-authority/30UE,Central Support Services,1009,GOVN - Policy & Governance,HR Recruitment - Advertising,15300,Indirect Employee Expenses,5002,Advertising in Housing Publication - Head of Planning & Property,20/12/2023,0189534,1350,Revenue,Spacehouse Limited,21113,,
Chorley Borough Council,http://statistics.data.gov.uk/id/local-authority/30UE,Corporate Management,1008,EARL - Communities,Other Contributions,40145,Grants and Subscriptions,5031,St Laurences Church - Household Support Fund Delivery  2nd payment as per agreement,06/12/2023,0188690,2000,Revenue,St Laurence`s PCC,17814,,
Chorley Borough Council,http://statistics.data.gov.uk/id/local-authority/30UE,Corporate Management,1008,EARL - Communities,Other Contributions,40145,Grants and Subscriptions,5031,HSF4 Grant,06/12/2023,0188767,3000,Revenue,St Laurence`s PCC,17814,,
Chorley Borough Council,http://statistics.data.gov.uk/id/local-authority/30UE,Capital,Capital,EARL - Communities,Grants,03002,Capital Expenditure,Capital,ADDRESS REDACTED,20/12/2023,0189656,5540,Capital,Stannah Lift Services Ltd,80943,,
Chorley Borough Council,http://statistics.data.gov.uk/id/local-authority/30UE,Homelessness,1075,EARL - Communities,Grants - Tenant Participation,40142,Grants and Subscriptions,5031,0,20/12/2023,0189450,625,Revenue,Stephen Daniels,86923,,
Chorley Borough Council,http://statistics.data.gov.uk/id/local-authority/30UE,Capital,Capital,PLAN - Planning & Development,Main Contractor,03007,Capital Expenditure,Capital,"Jubilee Recreation Ground Improvement - consultancy for tender evaluation, contract award and site supervision as set out in the ",13/12/2023,0189280,1386.5,Capital,Street Civil Engineering Limited,76750,,
Chorley Borough Council,http://statistics.data.gov.uk/id/local-authority/30UE,Capital,Capital,EARL - Communities,Grants,03002,Capital Expenditure,Capital,ADDRESS REDACTED,20/12/2023,0189473,11990,Capital,Stringfellow Bldg Cntrctrs Ltd,17893,,
Chorley Borough Council,http://statistics.data.gov.uk/id/local-authority/30UE,Capital,Capital,EARL - Communities,Grants,03002,Capital Expenditure,Capital,,20/12/2023,0189633,2140,Capital,Stringfellow Bldg Cntrctrs Ltd,17893,,
Chorley Borough Council,http://statistics.data.gov.uk/id/local-authority/30UE,Capital,Capital,EARL - Communities,Grants,03002,Capital Expenditure,Capital,ADDRESS REDACTED,20/12/2023,0189657,5180,Capital,Stringfellow Bldg Cntrctrs Ltd,17893,,
Chorley Borough Council,http://statistics.data.gov.uk/id/local-authority/30UE,Service Management & Support,1009,CUST - Customer & Digital,Refuse Collection,20037,Cleaning and Domestic Supplies,5012,Exchange 20 yard Street Sweepings Skip @ 82.26 each,20/12/2023,0189214,1781.12,Revenue,SUEZ R&R UK LTD,17615,,
Chorley Borough Council,http://statistics.data.gov.uk/id/local-authority/30UE,Service Management & Support,1009,CUST - Customer & Digital,Refuse Collection,20037,Cleaning and Domestic Supplies,5012,Exchange 35 yard General Waste Skip @ 101.86 each,20/12/2023,0189214,809.46,Revenue,SUEZ R&R UK LTD,17615,,
Chorley Borough Council,http://statistics.data.gov.uk/id/local-authority/30UE,Service Management & Support,1009,CUST - Customer & Digital,Refuse Collection,20037,Cleaning and Domestic Supplies,5012,Disposal charge and processing of Green Waste @ 37.50 per tonne,20/12/2023,0189214,538.5,Revenue,SUEZ R&R UK LTD,17615,,
Chorley Borough Council,http://statistics.data.gov.uk/id/local-authority/30UE,Capital,Capital,GROW - Commercial Services,Other Contractor,03012,Capital Expenditure,Capital,Topographical Survey - ADDRESS REDACTED,20/12/2023,0187648,1250,Capital,Survey Operations Ltd,55910,,
Chorley Borough Council,http://statistics.data.gov.uk/id/local-authority/30UE,Homelessness,1075,EARL - Communities,Grants - Tenant Participation,40142,Grants and Subscriptions,5031,0,20/12/2023,0189441,625,Revenue,Susan McGuigan,85422,,
Chorley Borough Council,http://statistics.data.gov.uk/id/local-authority/30UE,Homelessness,1075,EARL - Communities,Grants - Tenant Participation,40142,Grants and Subscriptions,5031,0,20/12/2023,0189463,578.5,Revenue,Sylvia Crowder,85500,,
Chorley Borough Council,http://statistics.data.gov.uk/id/local-authority/30UE,Homelessness,1075,EARL - Communities,Grants - Tenant Participation,40142,Grants and Subscriptions,5031,0,20/12/2023,0189443,625,Revenue,Tawny Burns,87007,,
Chorley Borough Council,http://statistics.data.gov.uk/id/local-authority/30UE,Business Support,1095,GROW - Commercial Services,Legal Fees,40171,Miscellaneous Expenses,5034,Invoice INV018101 - Provision of security officers at SFDOP November 2023,13/12/2023,0189351,7849.05,Revenue,The ExcluSec Group Ltd,78056,,
Chorley Borough Council,http://statistics.data.gov.uk/id/local-authority/30UE,Central Support Services,1009,CUST - Customer & Digital,Computer Equipment-Purchase,40098,Communication and Computing,5028,Chorley Bus Station Switch and Licenses,06/12/2023,0188233,2101.16,Revenue,The Networking People (NorthWest) Ltd T/a TNP Ltd,73446,,
Chorley Borough Council,http://statistics.data.gov.uk/id/local-authority/30UE,Central Support Services,1009,CUST - Customer & Digital,IT Software - Annual Licences,40101,Communication and Computing,5028,Renewal of support on various APs,20/12/2023,0189312,9908.8,Revenue,The Networking People (NorthWest) Ltd T/a TNP Ltd,73446,,
Chorley Borough Council,http://statistics.data.gov.uk/id/local-authority/30UE,Central Support Services,1009,GROW - Commercial Services,External Contractor,40198,Miscellaneous Expenses,5034,"Initial work carried out on the Charnock Richard project as instructed by NAME REDACTED:, 1) Review existing information provided",06/12/2023,0189208,9250,Revenue,Trebbi Continuum,77723,,
Chorley Borough Council,http://statistics.data.gov.uk/id/local-authority/30UE,Service Management & Support,1009,CUST - Customer & Digital,Grounds Maintenance Contractor,20043,Grounds Maintenance Costs,5013,Section felling of 1 x large Beech tree.,20/12/2023,0188296,980,Revenue,Treescape North West Ltd,17688,,
Chorley Borough Council,http://statistics.data.gov.uk/id/local-authority/30UE,Service Management & Support,1009,CUST - Customer & Digital,Grounds Maintenance Contractor,20043,Grounds Maintenance Costs,5013,"Removal of fallen Willows, Withnell Nature Reserve",20/12/2023,0188697,850,Revenue,Treescape North West Ltd,17688,,
Chorley Borough Council,http://statistics.data.gov.uk/id/local-authority/30UE,Capital,Capital,CUST - Customer & Digital,Main Contractor,03007,Capital Expenditure,Capital,Tree work at ADDRESS REDACTED,20/12/2023,0189215,850,Capital,Treexpert Tree Care,78580,,
Chorley Borough Council,http://statistics.data.gov.uk/id/local-authority/30UE,Service Management & Support,1009,CUST - Customer & Digital,Grounds Maintenance Contractor,20043,Grounds Maintenance Costs,5013,Invoice 0227,20/12/2023,0189640,1160,Revenue,Treexpert Tree Care,78580,,
Chorley Borough Council,http://statistics.data.gov.uk/id/local-authority/30UE,Service Management & Support,1009,CUST - Customer & Digital,Grounds Maintenance Contractor,20043,Grounds Maintenance Costs,5013,Invoice 0229,20/12/2023,0189641,1260,Revenue,Treexpert Tree Care,78580,,
Chorley Borough Council,http://statistics.data.gov.uk/id/local-authority/30UE,Service Management & Support,1009,CUST - Customer & Digital,Grounds Maintenance Contractor,20043,Grounds Maintenance Costs,5013,Invoice 0222,20/12/2023,0189642,1260,Revenue,Treexpert Tree Care,78580,,
Chorley Borough Council,http://statistics.data.gov.uk/id/local-authority/30UE,Other Short Term Debtors,0,GOVN - Policy & Governance,Other Debtors,00098,Balance Sheet,Balance,Tusker Lease Car Scheme for staff,20/12/2023,0189670,3603.85,Revenue,Tuskerdirect Ltd,86967,,
Chorley Borough Council,http://statistics.data.gov.uk/id/local-authority/30UE,Other Short Term Debtors,0,GOVN - Policy & Governance,Other Debtors,00098,Balance Sheet,Balance,Tusker Lease Car Scheme for staff,20/12/2023,0189671,3603.85,Revenue,Tuskerdirect Ltd,86967,,
Chorley Borough Council,http://statistics.data.gov.uk/id/local-authority/30UE,Other Short Term Debtors,0,GOVN - Policy & Governance,Other Debtors,00098,Balance Sheet,Balance,Tusker Lease Car Scheme for staff,20/12/2023,0189672,3603.85,Revenue,Tuskerdirect Ltd,86967,,
Chorley Borough Council,http://statistics.data.gov.uk/id/local-authority/30UE,Other Short Term Debtors,0,GOVN - Policy & Governance,Other Debtors,00098,Balance Sheet,Balance,Tusker Lease Car Scheme for staff,20/12/2023,0189673,3603.85,Revenue,Tuskerdirect Ltd,86967,,
Chorley Borough Council,http://statistics.data.gov.uk/id/local-authority/30UE,Other Short Term Debtors,0,GOVN - Policy & Governance,Other Debtors,00098,Balance Sheet,Balance,Tusker Lease Car Scheme for staff,20/12/2023,0189674,923.78,Revenue,Tuskerdirect Ltd,86967,,
Chorley Borough Council,http://statistics.data.gov.uk/id/local-authority/30UE,Other Short Term Debtors,0,GOVN - Policy & Governance,Other Debtors,00098,Balance Sheet,Balance,Tusker Lease Car Scheme for staff,20/12/2023,0189675,542.19,Revenue,Tuskerdirect Ltd,86967,,
Chorley Borough Council,http://statistics.data.gov.uk/id/local-authority/30UE,Other Short Term Debtors,0,GOVN - Policy & Governance,Other Debtors,00098,Balance Sheet,Balance,Tusker Lease Car Scheme for staff,20/12/2023,0189676,2137.88,Revenue,Tuskerdirect Ltd,86967,,
Chorley Borough Council,http://statistics.data.gov.uk/id/local-authority/30UE,Other Short Term Debtors,0,GOVN - Policy & Governance,Other Debtors,00098,Balance Sheet,Balance,Tusker Lease Car Scheme for staff,20/12/2023,0189677,2137.88,Revenue,Tuskerdirect Ltd,86967,,
Chorley Borough Council,http://statistics.data.gov.uk/id/local-authority/30UE,Corporate Management,1008,EARL - Communities,Other Contributions,40145,Grants and Subscriptions,5031,warm spaces,13/12/2023,0189260,500,Revenue,UDevelop CIC,84423,,
Chorley Borough Council,http://statistics.data.gov.uk/id/local-authority/30UE,Street Cleansing,1049,CUST - Customer & Digital,Provn Of Street Furniture,20057,Grounds Maintenance Costs,5013,10 x litterbin refurb,20/12/2023,0188671,1500,Revenue,UK CONTAINER MAINTENANCE LTD,89476,,
Chorley Borough Council,http://statistics.data.gov.uk/id/local-authority/30UE,Central Support Services,1009,CUST - Customer & Digital,Tools & Equipment - Maintenance,40005,"Equipment, Furniture & Materia",5023,"Repair of 1100L metal wheeled bins on site., Quantity = 9",13/12/2023,0188709,1014.02,Revenue,UK CONTAINER MAINTENANCE LTD,89476,,
Chorley Borough Council,http://statistics.data.gov.uk/id/local-authority/30UE,Central Support Services,1009,GOVN - Policy & Governance,Misc Expenses,40200,Miscellaneous Expenses,5034,,13/12/2023,0189223,1467.4,Revenue,UK Healthcare (BDHSC),17241,,
Chorley Borough Council,http://statistics.data.gov.uk/id/local-authority/30UE,Control Accounts,Control,GOVN - Policy & Governance,General Balances,00100,Balance Sheet,Balance,Unify - Nov 23 Monthly Deductions from payroll,13/12/2023,0189399,984,Revenue,Unify Credit Union Ltd,55509,,
Chorley Borough Council,http://statistics.data.gov.uk/id/local-authority/30UE,Homelessness,1075,EARL - Communities,Grants - Tenant Participation,40142,Grants and Subscriptions,5031,0,20/12/2023,0189457,625,Revenue,Victoria Travis,89685,,
Chorley Borough Council,http://statistics.data.gov.uk/id/local-authority/30UE,Central Support Services,1009,GOVN - Policy & Governance,Publicity - Advertising,40157,Miscellaneous Expenses,5034,Viva PR Team Review and plan definition,13/12/2023,0185176,2550,Revenue,Viva PR Limited,21691,,
Chorley Borough Council,http://statistics.data.gov.uk/id/local-authority/30UE,Central Support Services,1009,CUST - Customer & Digital,Computer Equipment - Security,40106,Communication and Computing,5028,,06/12/2023,0188727,2404.2,Revenue,Vodafone Ltd,60180,,
Chorley Borough Council,http://statistics.data.gov.uk/id/local-authority/30UE,Central Support Services,1009,CUST - Customer & Digital,Computer Equipment - Security,40106,Communication and Computing,5028,,06/12/2023,0188730,2404.2,Revenue,Vodafone Ltd,60180,,
Chorley Borough Council,http://statistics.data.gov.uk/id/local-authority/30UE,Community Development,1097,GROW - Commercial Services,General Repairs - Reactive,20004,Repairs Maintenance & Alts,5005,Reactive Electrical Repair Works @ CAB - 35/39 Market Street,13/12/2023,0188174,1147.48,Revenue,Walker Gabbott Electrical Ltd,83932,,
Chorley Borough Council,http://statistics.data.gov.uk/id/local-authority/30UE,Central Support Services,1009,GROW - Commercial Services,General Repairs - Reactive,20004,Repairs Maintenance & Alts,5005,Reactive Electrical Repair Works @ Community Centres,06/12/2023,0188458,577.28,Revenue,Walker Gabbott Electrical Ltd,83932,,
Chorley Borough Council,http://statistics.data.gov.uk/id/local-authority/30UE,Capital,Capital,GROW - Commercial Services,Main Contractor,03007,Capital Expenditure,Capital,Electricity connection for CCTV at Manor Road Play Area,06/12/2023,0188482,3190,Capital,Walker Gabbott Electrical Ltd,83932,,
Chorley Borough Council,http://statistics.data.gov.uk/id/local-authority/30UE,Central Support Services,1009,GROW - Commercial Services,General Repairs - Reactive,20004,Repairs Maintenance & Alts,5005,Reactive Electrical Repair Works @ Various CBC Car Parks,13/12/2023,0188488,544.41,Revenue,Walker Gabbott Electrical Ltd,83932,,
Chorley Borough Council,http://statistics.data.gov.uk/id/local-authority/30UE,Central Support Services,1009,GROW - Commercial Services,General Repairs - Reactive,20004,Repairs Maintenance & Alts,5005,Reactive Electrical Repair Works @ CBC Parks Buildings,06/12/2023,0188491,1376.65,Revenue,Walker Gabbott Electrical Ltd,83932,,
Chorley Borough Council,http://statistics.data.gov.uk/id/local-authority/30UE,Central Support Services,1009,GROW - Commercial Services,General Repairs - Reactive,20004,Repairs Maintenance & Alts,5005,Reactive Electrical Repair Works @ Astley Hall & Buildings,06/12/2023,0188513,1843.3,Revenue,Walker Gabbott Electrical Ltd,83932,,
Chorley Borough Council,http://statistics.data.gov.uk/id/local-authority/30UE,Central Support Services,1009,GROW - Commercial Services,General Repairs - Reactive,20004,Repairs Maintenance & Alts,5005,Reactive Electrical Repair Works @ Community Centres,06/12/2023,0188560,697.28,Revenue,Walker Gabbott Electrical Ltd,83932,,
Chorley Borough Council,http://statistics.data.gov.uk/id/local-authority/30UE,Business Support,1095,GROW - Commercial Services,General Repairs - Reactive,20004,Repairs Maintenance & Alts,5005,Reactive Electrical Repair Works @ Strawberry Fields,06/12/2023,0188572,3654.34,Revenue,Walker Gabbott Electrical Ltd,83932,,
Chorley Borough Council,http://statistics.data.gov.uk/id/local-authority/30UE,Capital,Capital,GROW - Commercial Services,Other Capital Related Fees,03024,Capital Expenditure,Capital,Electrical Rewire Works - ADDRESS REDACTED,06/12/2023,0188611,1200,Capital,Walker Gabbott Electrical Ltd,83932,,
Chorley Borough Council,http://statistics.data.gov.uk/id/local-authority/30UE,Central Support Services,1009,GROW - Commercial Services,General Repairs - Reactive,20004,Repairs Maintenance & Alts,5005,Reactive Electrical Repair Works @ Chorley Market,13/12/2023,0188703,1855,Revenue,Walker Gabbott Electrical Ltd,83932,,
Chorley Borough Council,http://statistics.data.gov.uk/id/local-authority/30UE,Central Support Services,1009,GROW - Commercial Services,General Repairs - Reactive,20004,Repairs Maintenance & Alts,5005,"Reactive Electrical Repair Works @ Cotswold House, Additional Reactive spend",13/12/2023,0188751,1190,Revenue,Walker Gabbott Electrical Ltd,83932,,
Chorley Borough Council,http://statistics.data.gov.uk/id/local-authority/30UE,Central Support Services,1009,GROW - Commercial Services,General Repairs - Reactive,20004,Repairs Maintenance & Alts,5005,Reactive Electrical Repair Works @ CBC Parks,20/12/2023,0189313,773.25,Revenue,Walker Gabbott Electrical Ltd,83932,,
Chorley Borough Council,http://statistics.data.gov.uk/id/local-authority/30UE,Central Support Services,1009,GROW - Commercial Services,Water - Metered Supplies,20022,Water Services,5009,01 November 2023 - 30 November 2023,20/12/2023,0189488,522.7,Revenue,WaterPlus 4085884879 Town Hall,84240,,
Chorley Borough Council,http://statistics.data.gov.uk/id/local-authority/30UE,Open Spaces,1038,GROW - Commercial Services,Water - Metered Supplies,20022,Water Services,5009,01 November 2023 - 30 November 2023,20/12/2023,0189512,511.97,Revenue,WaterPlus 4159823953 Astley Coach House,85508,,
Chorley Borough Council,http://statistics.data.gov.uk/id/local-authority/30UE,Homelessness,1075,GROW - Commercial Services,Water - Metered Supplies,20022,Water Services,5009,01 November 2023 - 30 November 2023,20/12/2023,0189511,690.15,Revenue,WaterPlus 4160565113 Cotswold House,85562,,
Chorley Borough Council,http://statistics.data.gov.uk/id/local-authority/30UE,Business Support,1095,GROW - Commercial Services,Promotional Expenses,40159,Miscellaneous Expenses,5034,"Per your quote 13032. 20mm lanyard with thumb trigger, printed with the Strawberry Fields logo x 1000 @ 0.63",20/12/2023,0189517,630,Revenue,WeBrand4You,68716,,
Chorley Borough Council,http://statistics.data.gov.uk/id/local-authority/30UE,Central Support Services,1009,GOVN - Policy & Governance,Postages,40082,Communication and Computing,5028,To cover cost of collections for June 2023 - March 2024,20/12/2023,0189497,529.18,Revenue,Whistl North Limited,67256,,
Chorley Borough Council,http://statistics.data.gov.uk/id/local-authority/30UE,Central Support Services,1009,PLAN - Planning & Development,Misc Expenses,40200,Miscellaneous Expenses,5034,"2nr Post Mounted outdoor Noticeboard PORTRAIT style for Rangletts Rec. Delivery to Bengal St Depot, 1350mm H x 1000mm W x 75mm D,",13/12/2023,0189314,2248,Revenue,White Hill Direct Ltd.,64098,,
Chorley Borough Council,http://statistics.data.gov.uk/id/local-authority/30UE,Democratic Represent and  Mgnt,1007,GOVN - Policy & Governance,Grants To Other Organisations,40127,Grants and Subscriptions,5031,Grant,20/12/2023,0189610,500,Revenue,Wombatz Explorer Scouts,89409,,
Chorley Borough Council,http://statistics.data.gov.uk/id/local-authority/30UE,Central Support Services,1009,GROW - Commercial Services,General Repairs - Reactive,20004,Repairs Maintenance & Alts,5005,Reactive Auto Doors and Shutters Repair Works @ Chorley Bus Station,06/12/2023,0188660,1360,Revenue,Yates Entrance Solutions Ltd,84714,,
Chorley Borough Council,http://statistics.data.gov.uk/id/local-authority/30UE,0,0,0,0,0,0,0,0,00/01/1900,0,0,0,0,0,,
Chorley Borough Council,http://statistics.data.gov.uk/id/local-authority/30UE,0,0,0,0,0,0,0,0,00/01/1900,0,0,0,0,0,,
Chorley Borough Council,http://statistics.data.gov.uk/id/local-authority/30UE,0,0,0,0,0,0,0,0,00/01/1900,0,0,0,0,0,,
Chorley Borough Council,http://statistics.data.gov.uk/id/local-authority/30UE,0,0,0,0,0,0,0,0,00/01/1900,0,0,0,0,0,,
Chorley Borough Council,http://statistics.data.gov.uk/id/local-authority/30UE,0,0,0,0,0,0,0,0,00/01/1900,0,0,0,0,0,,
Chorley Borough Council,http://statistics.data.gov.uk/id/local-authority/30UE,0,0,0,0,0,0,0,0,00/01/1900,0,0,0,0,0,,
Chorley Borough Council,http://statistics.data.gov.uk/id/local-authority/30UE,0,0,0,0,0,0,0,0,00/01/1900,0,0,0,0,0,,
Chorley Borough Council,http://statistics.data.gov.uk/id/local-authority/30UE,0,0,0,0,0,0,0,0,00/01/1900,0,0,0,0,0,,
Chorley Borough Council,http://statistics.data.gov.uk/id/local-authority/30UE,0,0,0,0,0,0,0,0,00/01/1900,0,0,0,0,0,,
Chorley Borough Council,http://statistics.data.gov.uk/id/local-authority/30UE,0,0,0,0,0,0,0,0,00/01/1900,0,0,0,0,0,,
Chorley Borough Council,http://statistics.data.gov.uk/id/local-authority/30UE,0,0,0,0,0,0,0,0,00/01/1900,0,0,0,0,0,,
Chorley Borough Council,http://statistics.data.gov.uk/id/local-authority/30UE,0,0,0,0,0,0,0,0,00/01/1900,0,0,0,0,0,,
Chorley Borough Council,http://statistics.data.gov.uk/id/local-authority/30UE,0,0,0,0,0,0,0,0,00/01/1900,0,0,0,0,0,,
Chorley Borough Council,http://statistics.data.gov.uk/id/local-authority/30UE,0,0,0,0,0,0,0,0,00/01/1900,0,0,0,0,0,,
Chorley Borough Council,http://statistics.data.gov.uk/id/local-authority/30UE,0,0,0,0,0,0,0,0,00/01/1900,0,0,0,0,0,,
Chorley Borough Council,http://statistics.data.gov.uk/id/local-authority/30UE,0,0,0,0,0,0,0,0,00/01/1900,0,0,0,0,0,,
Chorley Borough Council,http://statistics.data.gov.uk/id/local-authority/30UE,0,0,0,0,0,0,0,0,00/01/1900,0,0,0,0,0,,
Chorley Borough Council,http://statistics.data.gov.uk/id/local-authority/30UE,0,0,0,0,0,0,0,0,00/01/1900,0,0,0,0,0,,
Chorley Borough Council,http://statistics.data.gov.uk/id/local-authority/30UE,0,0,0,0,0,0,0,0,00/01/1900,0,0,0,0,0,,
Chorley Borough Council,http://statistics.data.gov.uk/id/local-authority/30UE,0,0,0,0,0,0,0,0,00/01/1900,0,0,0,0,0,,
Chorley Borough Council,http://statistics.data.gov.uk/id/local-authority/30UE,0,0,0,0,0,0,0,0,00/01/1900,0,0,0,0,0,,
Chorley Borough Council,http://statistics.data.gov.uk/id/local-authority/30UE,0,0,0,0,0,0,0,0,00/01/1900,0,0,0,0,0,,
Chorley Borough Council,http://statistics.data.gov.uk/id/local-authority/30UE,0,0,0,0,0,0,0,0,00/01/1900,0,0,0,0,0,,
Chorley Borough Council,http://statistics.data.gov.uk/id/local-authority/30UE,0,0,0,0,0,0,0,0,00/01/1900,0,0,0,0,0,,
Chorley Borough Council,http://statistics.data.gov.uk/id/local-authority/30UE,0,0,0,0,0,0,0,0,00/01/1900,0,0,0,0,0,,
Chorley Borough Council,http://statistics.data.gov.uk/id/local-authority/30UE,0,0,0,0,0,0,0,0,00/01/1900,0,0,0,0,0,,
Chorley Borough Council,http://statistics.data.gov.uk/id/local-authority/30UE,0,0,0,0,0,0,0,0,00/01/1900,0,0,0,0,0,,
Chorley Borough Council,http://statistics.data.gov.uk/id/local-authority/30UE,0,0,0,0,0,0,0,0,00/01/1900,0,0,0,0,0,,
Chorley Borough Council,http://statistics.data.gov.uk/id/local-authority/30UE,0,0,0,0,0,0,0,0,00/01/1900,0,0,0,0,0,,
Chorley Borough Council,http://statistics.data.gov.uk/id/local-authority/30UE,0,0,0,0,0,0,0,0,00/01/1900,0,0,0,0,0,,
Chorley Borough Council,http://statistics.data.gov.uk/id/local-authority/30UE,0,0,0,0,0,0,0,0,00/01/1900,0,0,0,0,0,,
Chorley Borough Council,http://statistics.data.gov.uk/id/local-authority/30UE,0,0,0,0,0,0,0,0,00/01/1900,0,0,0,0,0,,
Chorley Borough Council,http://statistics.data.gov.uk/id/local-authority/30UE,0,0,0,0,0,0,0,0,00/01/1900,0,0,0,0,0,,
Chorley Borough Council,http://statistics.data.gov.uk/id/local-authority/30UE,0,0,0,0,0,0,0,0,00/01/1900,0,0,0,0,0,,
Chorley Borough Council,http://statistics.data.gov.uk/id/local-authority/30UE,0,0,0,0,0,0,0,0,00/01/1900,0,0,0,0,0,,
Chorley Borough Council,http://statistics.data.gov.uk/id/local-authority/30UE,0,0,0,0,0,0,0,0,00/01/1900,0,0,0,0,0,,
Chorley Borough Council,http://statistics.data.gov.uk/id/local-authority/30UE,0,0,0,0,0,0,0,0,00/01/1900,0,0,0,0,0,,
Chorley Borough Council,http://statistics.data.gov.uk/id/local-authority/30UE,0,0,0,0,0,0,0,0,00/01/1900,0,0,0,0,0,,
Chorley Borough Council,http://statistics.data.gov.uk/id/local-authority/30UE,0,0,0,0,0,0,0,0,00/01/1900,0,0,0,0,0,,
Chorley Borough Council,http://statistics.data.gov.uk/id/local-authority/30UE,0,0,0,0,0,0,0,0,00/01/1900,0,0,0,0,0,,
Chorley Borough Council,http://statistics.data.gov.uk/id/local-authority/30UE,0,0,0,0,0,0,0,0,00/01/1900,0,0,0,0,0,,
Chorley Borough Council,http://statistics.data.gov.uk/id/local-authority/30UE,0,0,0,0,0,0,0,0,00/01/1900,0,0,0,0,0,,
Chorley Borough Council,http://statistics.data.gov.uk/id/local-authority/30UE,0,0,0,0,0,0,0,0,00/01/1900,0,0,0,0,0,,
Chorley Borough Council,http://statistics.data.gov.uk/id/local-authority/30UE,0,0,0,0,0,0,0,0,00/01/1900,0,0,0,0,0,,
Chorley Borough Council,http://statistics.data.gov.uk/id/local-authority/30UE,0,0,0,0,0,0,0,0,00/01/1900,0,0,0,0,0,,
Chorley Borough Council,http://statistics.data.gov.uk/id/local-authority/30UE,0,0,0,0,0,0,0,0,00/01/1900,0,0,0,0,0,,
Chorley Borough Council,http://statistics.data.gov.uk/id/local-authority/30UE,0,0,0,0,0,0,0,0,00/01/1900,0,0,0,0,0,,
Chorley Borough Council,http://statistics.data.gov.uk/id/local-authority/30UE,0,0,0,0,0,0,0,0,00/01/1900,0,0,0,0,0,,
Chorley Borough Council,http://statistics.data.gov.uk/id/local-authority/30UE,0,0,0,0,0,0,0,0,00/01/1900,0,0,0,0,0,,
Chorley Borough Council,http://statistics.data.gov.uk/id/local-authority/30UE,0,0,0,0,0,0,0,0,00/01/1900,0,0,0,0,0,,
Chorley Borough Council,http://statistics.data.gov.uk/id/local-authority/30UE,0,0,0,0,0,0,0,0,00/01/1900,0,0,0,0,0,,
Chorley Borough Council,http://statistics.data.gov.uk/id/local-authority/30UE,0,0,0,0,0,0,0,0,00/01/1900,0,0,0,0,0,,
Chorley Borough Council,http://statistics.data.gov.uk/id/local-authority/30UE,0,0,0,0,0,0,0,0,00/01/1900,0,0,0,0,0,,
Chorley Borough Council,http://statistics.data.gov.uk/id/local-authority/30UE,0,0,0,0,0,0,0,0,00/01/1900,0,0,0,0,0,,
Chorley Borough Council,http://statistics.data.gov.uk/id/local-authority/30UE,0,0,0,0,0,0,0,0,00/01/1900,0,0,0,0,0,,
Chorley Borough Council,http://statistics.data.gov.uk/id/local-authority/30UE,0,0,0,0,0,0,0,0,00/01/1900,0,0,0,0,0,,
Chorley Borough Council,http://statistics.data.gov.uk/id/local-authority/30UE,0,0,0,0,0,0,0,0,00/01/1900,0,0,0,0,0,,
Chorley Borough Council,http://statistics.data.gov.uk/id/local-authority/30UE,0,0,0,0,0,0,0,0,00/01/1900,0,0,0,0,0,,
Chorley Borough Council,http://statistics.data.gov.uk/id/local-authority/30UE,0,0,0,0,0,0,0,0,00/01/1900,0,0,0,0,0,,
Chorley Borough Council,http://statistics.data.gov.uk/id/local-authority/30UE,0,0,0,0,0,0,0,0,00/01/1900,0,0,0,0,0,,
Chorley Borough Council,http://statistics.data.gov.uk/id/local-authority/30UE,0,0,0,0,0,0,0,0,00/01/1900,0,0,0,0,0,,
Chorley Borough Council,http://statistics.data.gov.uk/id/local-authority/30UE,0,0,0,0,0,0,0,0,00/01/1900,0,0,0,0,0,,
Chorley Borough Council,http://statistics.data.gov.uk/id/local-authority/30UE,0,0,0,0,0,0,0,0,00/01/1900,0,0,0,0,0,,
Chorley Borough Council,http://statistics.data.gov.uk/id/local-authority/30UE,0,0,0,0,0,0,0,0,00/01/1900,0,0,0,0,0,,
Chorley Borough Council,http://statistics.data.gov.uk/id/local-authority/30UE,0,0,0,0,0,0,0,0,00/01/1900,0,0,0,0,0,,
Chorley Borough Council,http://statistics.data.gov.uk/id/local-authority/30UE,0,0,0,0,0,0,0,0,00/01/1900,0,0,0,0,0,,
Chorley Borough Council,http://statistics.data.gov.uk/id/local-authority/30UE,0,0,0,0,0,0,0,0,00/01/1900,0,0,0,0,0,,
Chorley Borough Council,http://statistics.data.gov.uk/id/local-authority/30UE,0,0,0,0,0,0,0,0,00/01/1900,0,0,0,0,0,,
Chorley Borough Council,http://statistics.data.gov.uk/id/local-authority/30UE,0,0,0,0,0,0,0,0,00/01/1900,0,0,0,0,0,,
Chorley Borough Council,http://statistics.data.gov.uk/id/local-authority/30UE,0,0,0,0,0,0,0,0,00/01/1900,0,0,0,0,0,,
Chorley Borough Council,http://statistics.data.gov.uk/id/local-authority/30UE,0,0,0,0,0,0,0,0,00/01/1900,0,0,0,0,0,,
Chorley Borough Council,http://statistics.data.gov.uk/id/local-authority/30UE,0,0,0,0,0,0,0,0,00/01/1900,0,0,0,0,0,,
Chorley Borough Council,http://statistics.data.gov.uk/id/local-authority/30UE,0,0,0,0,0,0,0,0,00/01/1900,0,0,0,0,0,,
Chorley Borough Council,http://statistics.data.gov.uk/id/local-authority/30UE,0,0,0,0,0,0,0,0,00/01/1900,0,0,0,0,0,,
Chorley Borough Council,http://statistics.data.gov.uk/id/local-authority/30UE,0,0,0,0,0,0,0,0,00/01/1900,0,0,0,0,0,,
Chorley Borough Council,http://statistics.data.gov.uk/id/local-authority/30UE,0,0,0,0,0,0,0,0,00/01/1900,0,0,0,0,0,,
Chorley Borough Council,http://statistics.data.gov.uk/id/local-authority/30UE,0,0,0,0,0,0,0,0,00/01/1900,0,0,0,0,0,,
Chorley Borough Council,http://statistics.data.gov.uk/id/local-authority/30UE,0,0,0,0,0,0,0,0,00/01/1900,0,0,0,0,0,,
Chorley Borough Council,http://statistics.data.gov.uk/id/local-authority/30UE,0,0,0,0,0,0,0,0,00/01/1900,0,0,0,0,0,,
Chorley Borough Council,http://statistics.data.gov.uk/id/local-authority/30UE,0,0,0,0,0,0,0,0,00/01/1900,0,0,0,0,0,,
Chorley Borough Council,http://statistics.data.gov.uk/id/local-authority/30UE,0,0,0,0,0,0,0,0,00/01/1900,0,0,0,0,0,,
Chorley Borough Council,http://statistics.data.gov.uk/id/local-authority/30UE,0,0,0,0,0,0,0,0,00/01/1900,0,0,0,0,0,,
Chorley Borough Council,http://statistics.data.gov.uk/id/local-authority/30UE,0,0,0,0,0,0,0,0,00/01/1900,0,0,0,0,0,,
Chorley Borough Council,http://statistics.data.gov.uk/id/local-authority/30UE,0,0,0,0,0,0,0,0,00/01/1900,0,0,0,0,0,,
Chorley Borough Council,http://statistics.data.gov.uk/id/local-authority/30UE,0,0,0,0,0,0,0,0,00/01/1900,0,0,0,0,0,,
Chorley Borough Council,http://statistics.data.gov.uk/id/local-authority/30UE,0,0,0,0,0,0,0,0,00/01/1900,0,0,0,0,0,,
Chorley Borough Council,http://statistics.data.gov.uk/id/local-authority/30UE,0,0,0,0,0,0,0,0,00/01/1900,0,0,0,0,0,,
Chorley Borough Council,http://statistics.data.gov.uk/id/local-authority/30UE,0,0,0,0,0,0,0,0,00/01/1900,0,0,0,0,0,,
Chorley Borough Council,http://statistics.data.gov.uk/id/local-authority/30UE,0,0,0,0,0,0,0,0,00/01/1900,0,0,0,0,0,,
Chorley Borough Council,http://statistics.data.gov.uk/id/local-authority/30UE,0,0,0,0,0,0,0,0,00/01/1900,0,0,0,0,0,,
Chorley Borough Council,http://statistics.data.gov.uk/id/local-authority/30UE,0,0,0,0,0,0,0,0,00/01/1900,0,0,0,0,0,,
Chorley Borough Council,http://statistics.data.gov.uk/id/local-authority/30UE,0,0,0,0,0,0,0,0,00/01/1900,0,0,0,0,0,,
Chorley Borough Council,http://statistics.data.gov.uk/id/local-authority/30UE,0,0,0,0,0,0,0,0,00/01/1900,0,0,0,0,0,,
Chorley Borough Council,http://statistics.data.gov.uk/id/local-authority/30UE,0,0,0,0,0,0,0,0,00/01/1900,0,0,0,0,0,,
Chorley Borough Council,http://statistics.data.gov.uk/id/local-authority/30UE,0,0,0,0,0,0,0,0,00/01/1900,0,0,0,0,0,,
Chorley Borough Council,http://statistics.data.gov.uk/id/local-authority/30UE,0,0,0,0,0,0,0,0,00/01/1900,0,0,0,0,0,,
Chorley Borough Council,http://statistics.data.gov.uk/id/local-authority/30UE,0,0,0,0,0,0,0,0,00/01/1900,0,0,0,0,0,,
Chorley Borough Council,http://statistics.data.gov.uk/id/local-authority/30UE,0,0,0,0,0,0,0,0,00/01/1900,0,0,0,0,0,,
Chorley Borough Council,http://statistics.data.gov.uk/id/local-authority/30UE,0,0,0,0,0,0,0,0,00/01/1900,0,0,0,0,0,,
Chorley Borough Council,http://statistics.data.gov.uk/id/local-authority/30UE,0,0,0,0,0,0,0,0,00/01/1900,0,0,0,0,0,,
Chorley Borough Council,http://statistics.data.gov.uk/id/local-authority/30UE,0,0,0,0,0,0,0,0,00/01/1900,0,0,0,0,0,,
Chorley Borough Council,http://statistics.data.gov.uk/id/local-authority/30UE,0,0,0,0,0,0,0,0,00/01/1900,0,0,0,0,0,,
Chorley Borough Council,http://statistics.data.gov.uk/id/local-authority/30UE,0,0,0,0,0,0,0,0,00/01/1900,0,0,0,0,0,,
Chorley Borough Council,http://statistics.data.gov.uk/id/local-authority/30UE,0,0,0,0,0,0,0,0,00/01/1900,0,0,0,0,0,,
Chorley Borough Council,http://statistics.data.gov.uk/id/local-authority/30UE,0,0,0,0,0,0,0,0,00/01/1900,0,0,0,0,0,,
Chorley Borough Council,http://statistics.data.gov.uk/id/local-authority/30UE,0,0,0,0,0,0,0,0,00/01/1900,0,0,0,0,0,,
Chorley Borough Council,http://statistics.data.gov.uk/id/local-authority/30UE,0,0,0,0,0,0,0,0,00/01/1900,0,0,0,0,0,,
Chorley Borough Council,http://statistics.data.gov.uk/id/local-authority/30UE,0,0,0,0,0,0,0,0,00/01/1900,0,0,0,0,0,,
Chorley Borough Council,http://statistics.data.gov.uk/id/local-authority/30UE,0,0,0,0,0,0,0,0,00/01/1900,0,0,0,0,0,,
Chorley Borough Council,http://statistics.data.gov.uk/id/local-authority/30UE,0,0,0,0,0,0,0,0,00/01/1900,0,0,0,0,0,,
Chorley Borough Council,http://statistics.data.gov.uk/id/local-authority/30UE,0,0,0,0,0,0,0,0,00/01/1900,0,0,0,0,0,,
Chorley Borough Council,http://statistics.data.gov.uk/id/local-authority/30UE,0,0,0,0,0,0,0,0,00/01/1900,0,0,0,0,0,,
Chorley Borough Council,http://statistics.data.gov.uk/id/local-authority/30UE,0,0,0,0,0,0,0,0,00/01/1900,0,0,0,0,0,,
Chorley Borough Council,http://statistics.data.gov.uk/id/local-authority/30UE,0,0,0,0,0,0,0,0,00/01/1900,0,0,0,0,0,,
Chorley Borough Council,http://statistics.data.gov.uk/id/local-authority/30UE,0,0,0,0,0,0,0,0,00/01/1900,0,0,0,0,0,,
Chorley Borough Council,http://statistics.data.gov.uk/id/local-authority/30UE,0,0,0,0,0,0,0,0,00/01/1900,0,0,0,0,0,,
Chorley Borough Council,http://statistics.data.gov.uk/id/local-authority/30UE,0,0,0,0,0,0,0,0,00/01/1900,0,0,0,0,0,,
Chorley Borough Council,http://statistics.data.gov.uk/id/local-authority/30UE,0,0,0,0,0,0,0,0,00/01/1900,0,0,0,0,0,,
Chorley Borough Council,http://statistics.data.gov.uk/id/local-authority/30UE,0,0,0,0,0,0,0,0,00/01/1900,0,0,0,0,0,,
Chorley Borough Council,http://statistics.data.gov.uk/id/local-authority/30UE,0,0,0,0,0,0,0,0,00/01/1900,0,0,0,0,0,,
Chorley Borough Council,http://statistics.data.gov.uk/id/local-authority/30UE,0,0,0,0,0,0,0,0,00/01/1900,0,0,0,0,0,,
Chorley Borough Council,http://statistics.data.gov.uk/id/local-authority/30UE,0,0,0,0,0,0,0,0,00/01/1900,0,0,0,0,0,,
Chorley Borough Council,http://statistics.data.gov.uk/id/local-authority/30UE,0,0,0,0,0,0,0,0,00/01/1900,0,0,0,0,0,,
Chorley Borough Council,http://statistics.data.gov.uk/id/local-authority/30UE,0,0,0,0,0,0,0,0,00/01/1900,0,0,0,0,0,,
Chorley Borough Council,http://statistics.data.gov.uk/id/local-authority/30UE,0,0,0,0,0,0,0,0,00/01/1900,0,0,0,0,0,,
Chorley Borough Council,http://statistics.data.gov.uk/id/local-authority/30UE,0,0,0,0,0,0,0,0,00/01/1900,0,0,0,0,0,,
Chorley Borough Council,http://statistics.data.gov.uk/id/local-authority/30UE,0,0,0,0,0,0,0,0,00/01/1900,0,0,0,0,0,,
Chorley Borough Council,http://statistics.data.gov.uk/id/local-authority/30UE,0,0,0,0,0,0,0,0,00/01/1900,0,0,0,0,0,,
Chorley Borough Council,http://statistics.data.gov.uk/id/local-authority/30UE,0,0,0,0,0,0,0,0,00/01/1900,0,0,0,0,0,,
Chorley Borough Council,http://statistics.data.gov.uk/id/local-authority/30UE,0,0,0,0,0,0,0,0,00/01/1900,0,0,0,0,0,,
Chorley Borough Council,http://statistics.data.gov.uk/id/local-authority/30UE,0,0,0,0,0,0,0,0,00/01/1900,0,0,0,0,0,,
Chorley Borough Council,http://statistics.data.gov.uk/id/local-authority/30UE,0,0,0,0,0,0,0,0,00/01/1900,0,0,0,0,0,,
Chorley Borough Council,http://statistics.data.gov.uk/id/local-authority/30UE,0,0,0,0,0,0,0,0,00/01/1900,0,0,0,0,0,,
Chorley Borough Council,http://statistics.data.gov.uk/id/local-authority/30UE,0,0,0,0,0,0,0,0,00/01/1900,0,0,0,0,0,,
Chorley Borough Council,http://statistics.data.gov.uk/id/local-authority/30UE,0,0,0,0,0,0,0,0,00/01/1900,0,0,0,0,0,,
Chorley Borough Council,http://statistics.data.gov.uk/id/local-authority/30UE,0,0,0,0,0,0,0,0,00/01/1900,0,0,0,0,0,,
Chorley Borough Council,http://statistics.data.gov.uk/id/local-authority/30UE,0,0,0,0,0,0,0,0,00/01/1900,0,0,0,0,0,,
Chorley Borough Council,http://statistics.data.gov.uk/id/local-authority/30UE,0,0,0,0,0,0,0,0,00/01/1900,0,0,0,0,0,,
Chorley Borough Council,http://statistics.data.gov.uk/id/local-authority/30UE,0,0,0,0,0,0,0,0,00/01/1900,0,0,0,0,0,,
Chorley Borough Council,http://statistics.data.gov.uk/id/local-authority/30UE,0,0,0,0,0,0,0,0,00/01/1900,0,0,0,0,0,,
Chorley Borough Council,http://statistics.data.gov.uk/id/local-authority/30UE,0,0,0,0,0,0,0,0,00/01/1900,0,0,0,0,0,,
Chorley Borough Council,http://statistics.data.gov.uk/id/local-authority/30UE,0,0,0,0,0,0,0,0,00/01/1900,0,0,0,0,0,,
Chorley Borough Council,http://statistics.data.gov.uk/id/local-authority/30UE,0,0,0,0,0,0,0,0,00/01/1900,0,0,0,0,0,,
Chorley Borough Council,http://statistics.data.gov.uk/id/local-authority/30UE,0,0,0,0,0,0,0,0,00/01/1900,0,0,0,0,0,,
Chorley Borough Council,http://statistics.data.gov.uk/id/local-authority/30UE,0,0,0,0,0,0,0,0,00/01/1900,0,0,0,0,0,,
Chorley Borough Council,http://statistics.data.gov.uk/id/local-authority/30UE,0,0,0,0,0,0,0,0,00/01/1900,0,0,0,0,0,,
Chorley Borough Council,http://statistics.data.gov.uk/id/local-authority/30UE,0,0,0,0,0,0,0,0,00/01/1900,0,0,0,0,0,,
Chorley Borough Council,http://statistics.data.gov.uk/id/local-authority/30UE,0,0,0,0,0,0,0,0,00/01/1900,0,0,0,0,0,,
